Workbook

Sheet Exercise with Delay
A2: Inputs | AK2: FALSE
B4: Operating Inputs | P4: Construction Period
C5: EPC Cost | E5: 1000 | G5: Equity IRR | I5: =IRR(E75:AS75,-0.4) -> 0.1100637651 | O5: =I8 -> 0.06 | P5: 1 | Q5: 2 | R5: 3 | S5: 4 | T5: 5 | U5: 6
C6: Initital Cash Flow | E6: 130 | G6: Project IRR | I6: =IRR(E76:AS76,-0.4) -> 0.08270555245 | K6: EPC | L6: =SUM(33:33) -> 1000 | N6: Operating Sensitivty | O6: 1.1 | P6: 0.06 | Q6: 0.06 | R6: 0.06 | S6: 0.06 | T6: 0.06 | U6: 0.06
C7: Sensitivity Factor | E7: 1 | F7: 82 | K7: IDC | L7: =SUM(34:34) -> 65.5578 | O7: =O6-0.1 -> 1 | P7: 0.06 | Q7: 0.06 | R7: 0.06 | S7: 0.06 | T7: 0.06 | U7: 0.06
C8: Construction Period (Years) | E8: 4 | G8: Debt IRR | I8: =IRR(E83:AS83,-0.5) -> 0.06 | K8: Total | L8: =SUM(35:35) -> 1065.5578 | O8: 0.9 | P8: 0.06 | Q8: 0.06 | R8: 0.06 | S8: 0.06 | T8: 0.06 | U8: 0.06
C9: Concession Period (Years | E9: 20 | O9: 0.8 | P9: 0.06 | Q9: 0.06 | R9: 0.0599564743 | S9: 0.0598075509 | T9: 0.05950258432 | U9: 0.05906804744
C10: Operating Life | E10: =E9-E8 -> 16 | K10: Sources | O10: 0.7 | P10: 0.05903191414 | Q10: 0.0584052274 | R10: 0.05764857709 | S10: 0.05681280312 | T10: 0.05591202709 | U10: 0.05503092922
K11: Debt Draws | L11: =SUM(38:38) -> 700 | O11: 0.6 | P11: 0.05267605753 | Q11: 0.05192305449 | R11: 0.05123865292 | S11: 0.05063923239 | T11: 0.05013822746 | U11: 0.04693341714
B12: Financial Inputs | K12: Cap Int | L12: =SUM(39:39) -> 65.5578 | O12: 0.5 | P12: 0.04438265259 | Q12: 0.04421223028 | R12: 0.04408942684 | S12: 0.04215188789 | T12: 0.03469068527 | U12: 0.02707138736
C13: Debt Commitment (Cash) | E13: 700 | K13: Equity | L13: =SUM(40:40) -> 300 | O13: 0.4 | P13: 0.035850597 | Q13: 0.03073522176 | R13: 0.02429977167 | S13: 0.01773971036 | T13: 0.01098056758 | U13: 0.003940122031
C14: Interest Rate | E14: 0.06 | K14: Total | L14: =SUM(41:41) -> 1065.5578 | O14: 0.3 | P14: 0.005757984673 | Q14: 0.0002854562491 | R14: -0.005382024997 | S14: -0.01129957113 | T14: -0.01753086069 | U14: -0.02415168709
C15: Debt Term | E15: 12 | O15: 0.2 | P15: -0.03266072506 | Q15: -0.03758730691 | R15: -0.04281068104 | S15: -0.04838388094 | T15: -0.05437160059 | U15: -0.06085415891
C16: Captialise Interest | E16: TRUE | O16: 0.1 | P16: -0.08773771438 | Q16: -0.0926903697 | R16: -0.09803868989 | S16: -0.1038474973 | T16: -0.1101975037 | U16: -0.117190718
A18: Periods
B19: Period | E19: =1-E8 -> -3 | F19: =E19+1 -> -2 | G19: =F19+1 -> -1 | H19: 0 | I19: 1 | J19: 2 | K19: 3 | L19: 4 | M19: 5 | N19: 6 | O19: 7 | P19: 8 | Q19: 9 | R19: 10 | S19: 11 | T19: 12 | U19: 13 | V19: 14 | W19: 15 | X19: 16 | Y19: 17 | Z19: 18 | AA19: 19 | AB19: 20 | AC19: 21 | AD19: 22 | AE19: 23 | AF19: 24 | AG19: 25 | AH19: 26 | AI19: 27 | AJ19: 28 | AK19: 29 | AL19: 30 | AM19: 31 | AN19: 32 | AO19: 33 | AP19: 34 | AQ19: 35 | AR19: 36 | AS19: 37
B20: Construction Switch | E20: =E19<1 -> TRUE | F20: =F19<1 -> TRUE | G20: TRUE | H20: TRUE | I20: FALSE | J20: FALSE | K20: FALSE | L20: FALSE | M20: FALSE | N20: FALSE | O20: FALSE | P20: FALSE | Q20: FALSE | R20: FALSE | S20: FALSE | T20: FALSE | U20: FALSE | V20: FALSE | W20: FALSE | X20: FALSE | Y20: FALSE | Z20: FALSE | AA20: FALSE | AB20: FALSE | AC20: FALSE | AD20: FALSE | AE20: FALSE | AF20: FALSE | AG20: FALSE | AH20: FALSE | AI20: FALSE | AJ20: FALSE | AK20: FALSE | AL20: FALSE | AM20: FALSE | AN20: FALSE | AO20: FALSE | AP20: FALSE | AQ20: FALSE | AR20: FALSE | AS20: FALSE
B21: Operating Switch | E21: =AND(E19>0,E19<=$E$10) -> FALSE | F21: =AND(F19>0,F19<=$E$10) -> FALSE | G21: FALSE | H21: FALSE | I21: TRUE | J21: TRUE | K21: TRUE | L21: TRUE | M21: TRUE | N21: TRUE | O21: TRUE | P21: TRUE | Q21: TRUE | R21: TRUE | S21: TRUE | T21: TRUE | U21: TRUE | V21: TRUE | W21: TRUE | X21: TRUE | Y21: FALSE | Z21: FALSE | AA21: FALSE | AB21: FALSE | AC21: FALSE | AD21: FALSE | AE21: FALSE | AF21: FALSE | AG21: FALSE | AH21: FALSE | AI21: FALSE | AJ21: FALSE | AK21: FALSE | AL21: FALSE | AM21: FALSE | AN21: FALSE | AO21: FALSE | AP21: FALSE | AQ21: FALSE | AR21: FALSE | AS21: FALSE
B22: Debt Repayment Switch | E22: =AND(E19>0,E19<=$E$15) -> FALSE | F22: =AND(F19>0,F19<=$E$15) -> FALSE | G22: FALSE | H22: FALSE | I22: TRUE | J22: TRUE | K22: TRUE | L22: TRUE | M22: TRUE | N22: TRUE | O22: TRUE | P22: TRUE | Q22: TRUE | R22: TRUE | S22: TRUE | T22: TRUE | U22: FALSE | V22: FALSE | W22: FALSE | X22: FALSE | Y22: FALSE | Z22: FALSE | AA22: FALSE | AB22: FALSE | AC22: FALSE | AD22: FALSE | AE22: FALSE | AF22: FALSE | AG22: FALSE | AH22: FALSE | AI22: FALSE | AJ22: FALSE | AK22: FALSE | AL22: FALSE | AM22: FALSE | AN22: FALSE | AO22: FALSE | AP22: FALSE | AQ22: FALSE | AR22: FALSE | AS22: FALSE
A24: Working
B25: Cash Flow Before Sensitvity | E25: =$E$6*E21 -> 0 | F25: =$E$6*F21 -> 0 | G25: 0 | H25: 0 | I25: 130 | J25: 130 | K25: 130 | L25: 130 | M25: 130 | N25: 130 | O25: 130 | P25: 130 | Q25: 130 | R25: 130 | S25: 130 | T25: 130 | U25: 130 | V25: 130 | W25: 130 | X25: 130 | Y25: 0 | Z25: 0 | AA25: 0 | AB25: 0 | AC25: 0 | AD25: 0 | AE25: 0 | AF25: 0 | AG25: 0 | AH25: 0 | AI25: 0 | AJ25: 0 | AK25: 0 | AL25: 0 | AM25: 0 | AN25: 0 | AO25: 0 | AP25: 0 | AQ25: 0 | AR25: 0 | AS25: 0
B26: Sensitivity Factor | E26: =$E$7 -> 1 | F26: =$E$7 -> 1 | G26: 1 | H26: 1 | I26: 1 | J26: 1 | K26: 1 | L26: 1 | M26: 1 | N26: 1 | O26: 1 | P26: 1 | Q26: 1 | R26: 1 | S26: 1 | T26: 1 | U26: 1 | V26: 1 | W26: 1 | X26: 1 | Y26: 1 | Z26: 1 | AA26: 1 | AB26: 1 | AC26: 1 | AD26: 1 | AE26: 1 | AF26: 1 | AG26: 1 | AH26: 1 | AI26: 1 | AJ26: 1 | AK26: 1 | AL26: 1 | AM26: 1 | AN26: 1 | AO26: 1 | AP26: 1 | AQ26: 1 | AR26: 1 | AS26: 1
B27: Cash Flow After Sensitivity | E27: =E25*E26 -> 0 | F27: =F25*F26 -> 0 | G27: 0 | H27: 0 | I27: 130 | J27: 130 | K27: 130 | L27: 130 | M27: 130 | N27: 130 | O27: 130 | P27: 130 | Q27: 130 | R27: 130 | S27: 130 | T27: 130 | U27: 130 | V27: 130 | W27: 130 | X27: 130 | Y27: 0 | Z27: 0 | AA27: 0 | AB27: 0 | AC27: 0 | AD27: 0 | AE27: 0 | AF27: 0 | AG27: 0 | AH27: 0 | AI27: 0 | AJ27: 0 | AK27: 0 | AL27: 0 | AM27: 0 | AN27: 0 | AO27: 0 | AP27: 0 | AQ27: 0 | AR27: 0 | AS27: 0
B28: Construction Expenditures | E28: =$E$5/$E$8*E20 -> 250 | F28: =$E$5/$E$8*F20 -> 250 | G28: 250 | H28: 250 | I28: 0 | J28: 0 | K28: 0 | L28: 0 | M28: 0 | N28: 0 | O28: 0 | P28: 0 | Q28: 0 | R28: 0 | S28: 0 | T28: 0 | U28: 0 | V28: 0 | W28: 0 | X28: 0 | Y28: 0 | Z28: 0 | AA28: 0 | AB28: 0 | AC28: 0 | AD28: 0 | AE28: 0 | AF28: 0 | AG28: 0 | AH28: 0 | AI28: 0 | AJ28: 0 | AK28: 0 | AL28: 0 | AM28: 0 | AN28: 0 | AO28: 0 | AP28: 0 | AQ28: 0 | AR28: 0 | AS28: 0
B29: Drawdown Percent | E29: =E28/SUM(28:28) -> 0.25 | F29: =F28/SUM(28:28) -> 0.25 | G29: 0.25 | H29: 0.25 | I29: 0 | J29: 0 | K29: 0 | L29: 0 | M29: 0 | N29: 0 | O29: 0 | P29: 0 | Q29: 0 | R29: 0 | S29: 0 | T29: 0 | U29: 0 | V29: 0 | W29: 0 | X29: 0 | Y29: 0 | Z29: 0 | AA29: 0 | AB29: 0 | AC29: 0 | AD29: 0 | AE29: 0 | AF29: 0 | AG29: 0 | AH29: 0 | AI29: 0 | AJ29: 0 | AK29: 0 | AL29: 0 | AM29: 0 | AN29: 0 | AO29: 0 | AP29: 0 | AQ29: 0 | AR29: 0 | AS29: 0
A31: Uses and Sources
B32: Uses
C33: EPC Cost | E33: =E28 -> 250 | F33: =F28 -> 250 | G33: 250 | H33: 250 | I33: 0 | J33: 0 | K33: 0 | L33: 0 | M33: 0 | N33: 0 | O33: 0 | P33: 0 | Q33: 0 | R33: 0 | S33: 0 | T33: 0 | U33: 0 | V33: 0 | W33: 0 | X33: 0 | Y33: 0 | Z33: 0 | AA33: 0 | AB33: 0 | AC33: 0 | AD33: 0 | AE33: 0 | AF33: 0 | AG33: 0 | AH33: 0 | AI33: 0 | AJ33: 0 | AK33: 0 | AL33: 0 | AM33: 0 | AN33: 0 | AO33: 0 | AP33: 0 | AQ33: 0 | AR33: 0 | AS33: 0
C34: Interest During Construction | E34: =E53 -> 0 | F34: =F53 -> 10.5 | G34: 21.63 | H34: 33.4278 | I34: 0 | J34: 0 | K34: 0 | L34: 0 | M34: 0 | N34: 0 | O34: 0 | P34: 0 | Q34: 0 | R34: 0 | S34: 0 | T34: 0 | U34: 0 | V34: 0 | W34: 0 | X34: 0 | Y34: 0 | Z34: 0 | AA34: 0 | AB34: 0 | AC34: 0 | AD34: 0 | AE34: 0 | AF34: 0 | AG34: 0 | AH34: 0 | AI34: 0 | AJ34: 0 | AK34: 0 | AL34: 0 | AM34: 0 | AN34: 0 | AO34: 0 | AP34: 0 | AQ34: 0 | AR34: 0 | AS34: 0
D35: Total | E35: =SUM(E33:E34) -> 250 | F35: =SUM(F33:F34) -> 260.5 | G35: 271.63 | H35: 283.4278 | I35: 0 | J35: 0 | K35: 0 | L35: 0 | M35: 0 | N35: 0 | O35: 0 | P35: 0 | Q35: 0 | R35: 0 | S35: 0 | T35: 0 | U35: 0 | V35: 0 | W35: 0 | X35: 0 | Y35: 0 | Z35: 0 | AA35: 0 | AB35: 0 | AC35: 0 | AD35: 0 | AE35: 0 | AF35: 0 | AG35: 0 | AH35: 0 | AI35: 0 | AJ35: 0 | AK35: 0 | AL35: 0 | AM35: 0 | AN35: 0 | AO35: 0 | AP35: 0 | AQ35: 0 | AR35: 0 | AS35: 0
B37: Sources
C38: Debt Draws | E38: =E29*$E$13*E20 -> 175 | F38: =F29*$E$13*F20 -> 175 | G38: 175 | H38: 175 | I38: 0 | J38: 0 | K38: 0 | L38: 0 | M38: 0 | N38: 0 | O38: 0 | P38: 0 | Q38: 0 | R38: 0 | S38: 0 | T38: 0 | U38: 0 | V38: 0 | W38: 0 | X38: 0 | Y38: 0 | Z38: 0 | AA38: 0 | AB38: 0 | AC38: 0 | AD38: 0 | AE38: 0 | AF38: 0 | AG38: 0 | AH38: 0 | AI38: 0 | AJ38: 0 | AK38: 0 | AL38: 0 | AM38: 0 | AN38: 0 | AO38: 0 | AP38: 0 | AQ38: 0 | AR38: 0 | AS38: 0
C39: Capitalised Interest | E39: =E47 -> 0 | F39: =F47 -> 10.5 | G39: 21.63 | H39: 33.4278 | I39: 0 | J39: 0 | K39: 0 | L39: 0 | M39: 0 | N39: 0 | O39: 0 | P39: 0 | Q39: 0 | R39: 0 | S39: 0 | T39: 0 | U39: 0 | V39: 0 | W39: 0 | X39: 0 | Y39: 0 | Z39: 0 | AA39: 0 | AB39: 0 | AC39: 0 | AD39: 0 | AE39: 0 | AF39: 0 | AG39: 0 | AH39: 0 | AI39: 0 | AJ39: 0 | AK39: 0 | AL39: 0 | AM39: 0 | AN39: 0 | AO39: 0 | AP39: 0 | AQ39: 0 | AR39: 0 | AS39: 0
C40: Equity | E40: =E35-E38-E39 -> 75 | F40: =F35-F38-F39 -> 75 | G40: 75 | H40: 75 | I40: 0 | J40: 0 | K40: 0 | L40: 0 | M40: 0 | N40: 0 | O40: 0 | P40: 0 | Q40: 0 | R40: 0 | S40: 0 | T40: 0 | U40: 0 | V40: 0 | W40: 0 | X40: 0 | Y40: 0 | Z40: 0 | AA40: 0 | AB40: 0 | AC40: 0 | AD40: 0 | AE40: 0 | AF40: 0 | AG40: 0 | AH40: 0 | AI40: 0 | AJ40: 0 | AK40: 0 | AL40: 0 | AM40: 0 | AN40: 0 | AO40: 0 | AP40: 0 | AQ40: 0 | AR40: 0 | AS40: 0
D41: Total | E41: =SUM(E38:E40) -> 250 | F41: =SUM(F38:F40) -> 260.5 | G41: 271.63 | H41: 283.4278 | I41: 0 | J41: 0 | K41: 0 | L41: 0 | M41: 0 | N41: 0 | O41: 0 | P41: 0 | Q41: 0 | R41: 0 | S41: 0 | T41: 0 | U41: 0 | V41: 0 | W41: 0 | X41: 0 | Y41: 0 | Z41: 0 | AA41: 0 | AB41: 0 | AC41: 0 | AD41: 0 | AE41: 0 | AF41: 0 | AG41: 0 | AH41: 0 | AI41: 0 | AJ41: 0 | AK41: 0 | AL41: 0 | AM41: 0 | AN41: 0 | AO41: 0 | AP41: 0 | AQ41: 0 | AR41: 0 | AS41: 0
A43: Debt Schedule
B44: Debt Balance
C45: Opening Balance | E45: =D49 -> 0 | F45: =E49 -> 175 | G45: 360.5 | H45: 557.13 | I45: 765.5578 | J45: 701.7613167 | K45: 637.9648333 | L45: 574.16835 | M45: 510.3718667 | N45: 446.5753833 | O45: 382.7789 | P45: 318.9824167 | Q45: 255.1859333 | R45: 191.38945 | S45: 127.5929667 | T45: 63.79648333 | U45: 7.105427358e-14 | V45: 7.105427358e-14 | W45: 7.105427358e-14 | X45: 7.105427358e-14 | Y45: 7.105427358e-14 | Z45: 7.105427358e-14 | AA45: 7.105427358e-14 | AB45: 7.105427358e-14 | AC45: 7.105427358e-14 | AD45: 7.105427358e-14 | AE45: 7.105427358e-14 | AF45: 7.105427358e-14 | AG45: 7.105427358e-14 | AH45: 7.105427358e-14 | AI45: 7.105427358e-14 | AJ45: 7.105427358e-14 | AK45: 7.105427358e-14 | AL45: 7.105427358e-14 | AM45: 7.105427358e-14 | AN45: 7.105427358e-14 | AO45: 7.105427358e-14 | AP45: 7.105427358e-14 | AQ45: 7.105427358e-14 | AR45: 7.105427358e-14 | AS45: 7.105427358e-14
C46: Add: Draws | E46: =E38 -> 175 | F46: =F38 -> 175 | G46: 175 | H46: 175 | I46: 0 | J46: 0 | K46: 0 | L46: 0 | M46: 0 | N46: 0 | O46: 0 | P46: 0 | Q46: 0 | R46: 0 | S46: 0 | T46: 0 | U46: 0 | V46: 0 | W46: 0 | X46: 0 | Y46: 0 | Z46: 0 | AA46: 0 | AB46: 0 | AC46: 0 | AD46: 0 | AE46: 0 | AF46: 0 | AG46: 0 | AH46: 0 | AI46: 0 | AJ46: 0 | AK46: 0 | AL46: 0 | AM46: 0 | AN46: 0 | AO46: 0 | AP46: 0 | AQ46: 0 | AR46: 0 | AS46: 0
C47: Add: Capitalised Interest | E47: =E53*$E$16 -> 0 | F47: =F53*$E$16 -> 10.5 | G47: 21.63 | H47: 33.4278 | I47: 0 | J47: 0 | K47: 0 | L47: 0 | M47: 0 | N47: 0 | O47: 0 | P47: 0 | Q47: 0 | R47: 0 | S47: 0 | T47: 0 | U47: 0 | V47: 0 | W47: 0 | X47: 0 | Y47: 0 | Z47: 0 | AA47: 0 | AB47: 0 | AC47: 0 | AD47: 0 | AE47: 0 | AF47: 0 | AG47: 0 | AH47: 0 | AI47: 0 | AJ47: 0 | AK47: 0 | AL47: 0 | AM47: 0 | AN47: 0 | AO47: 0 | AP47: 0 | AQ47: 0 | AR47: 0 | AS47: 0
C48: Less: Repayment | E48: =E50/$E$15*E22 -> 0 | F48: =F50/$E$15*F22 -> 0 | G48: 0 | H48: 0 | I48: 63.79648333 | J48: 63.79648333 | K48: 63.79648333 | L48: 63.79648333 | M48: 63.79648333 | N48: 63.79648333 | O48: 63.79648333 | P48: 63.79648333 | Q48: 63.79648333 | R48: 63.79648333 | S48: 63.79648333 | T48: 63.79648333 | U48: 0 | V48: 0 | W48: 0 | X48: 0 | Y48: 0 | Z48: 0 | AA48: 0 | AB48: 0 | AC48: 0 | AD48: 0 | AE48: 0 | AF48: 0 | AG48: 0 | AH48: 0 | AI48: 0 | AJ48: 0 | AK48: 0 | AL48: 0 | AM48: 0 | AN48: 0 | AO48: 0 | AP48: 0 | AQ48: 0 | AR48: 0 | AS48: 0
C49: Closing Balance | E49: =E45+E46+E47-E48 -> 175 | F49: =F45+F46+F47-F48 -> 360.5 | G49: 557.13 | H49: 765.5578 | I49: 701.7613167 | J49: 637.9648333 | K49: 574.16835 | L49: 510.3718667 | M49: 446.5753833 | N49: 382.7789 | O49: 318.9824167 | P49: 255.1859333 | Q49: 191.38945 | R49: 127.5929667 | S49: 63.79648333 | T49: 7.105427358e-14 | U49: 7.105427358e-14 | V49: 7.105427358e-14 | W49: 7.105427358e-14 | X49: 7.105427358e-14 | Y49: 7.105427358e-14 | Z49: 7.105427358e-14 | AA49: 7.105427358e-14 | AB49: 7.105427358e-14 | AC49: 7.105427358e-14 | AD49: 7.105427358e-14 | AE49: 7.105427358e-14 | AF49: 7.105427358e-14 | AG49: 7.105427358e-14 | AH49: 7.105427358e-14 | AI49: 7.105427358e-14 | AJ49: 7.105427358e-14 | AK49: 7.105427358e-14 | AL49: 7.105427358e-14 | AM49: 7.105427358e-14 | AN49: 7.105427358e-14 | AO49: 7.105427358e-14 | AP49: 7.105427358e-14 | AQ49: 7.105427358e-14 | AR49: 7.105427358e-14 | AS49: 7.105427358e-14
C50: Accumulated Debt | E50: =IF(E20,D50+E46+E47,D50) -> 175 | F50: =IF(F20,E50+F46+F47,E50) -> 360.5 | G50: 557.13 | H50: 765.5578 | I50: 765.5578 | J50: 765.5578 | K50: 765.5578 | L50: 765.5578 | M50: 765.5578 | N50: 765.5578 | O50: 765.5578 | P50: 765.5578 | Q50: 765.5578 | R50: 765.5578 | S50: 765.5578 | T50: 765.5578 | U50: 765.5578 | V50: 765.5578 | W50: 765.5578 | X50: 765.5578 | Y50: 765.5578 | Z50: 765.5578 | AA50: 765.5578 | AB50: 765.5578 | AC50: 765.5578 | AD50: 765.5578 | AE50: 765.5578 | AF50: 765.5578 | AG50: 765.5578 | AH50: 765.5578 | AI50: 765.5578 | AJ50: 765.5578 | AK50: 765.5578 | AL50: 765.5578 | AM50: 765.5578 | AN50: 765.5578 | AO50: 765.5578 | AP50: 765.5578 | AQ50: 765.5578 | AR50: 765.5578 | AS50: 765.5578
C51: Interest Rate | E51: =$E$14 -> 0.06 | F51: =$E$14 -> 0.06 | G51: 0.06 | H51: 0.06 | I51: 0.06 | J51: 0.06 | K51: 0.06 | L51: 0.06 | M51: 0.06 | N51: 0.06 | O51: 0.06 | P51: 0.06 | Q51: 0.06 | R51: 0.06 | S51: 0.06 | T51: 0.06 | U51: 0.06 | V51: 0.06 | W51: 0.06 | X51: 0.06 | Y51: 0.06 | Z51: 0.06 | AA51: 0.06 | AB51: 0.06 | AC51: 0.06 | AD51: 0.06 | AE51: 0.06 | AF51: 0.06 | AG51: 0.06 | AH51: 0.06 | AI51: 0.06 | AJ51: 0.06 | AK51: 0.06 | AL51: 0.06 | AM51: 0.06 | AN51: 0.06 | AO51: 0.06 | AP51: 0.06 | AQ51: 0.06 | AR51: 0.06 | AS51: 0.06
C52: Interest Expense | E52: =E51*E45*E21 -> 0 | F52: =F51*F45*F21 -> 0 | G52: 0 | H52: 0 | I52: 45.933468 | J52: 42.105679 | K52: 38.27789 | L52: 34.450101 | M52: 30.622312 | N52: 26.794523 | O52: 22.966734 | P52: 19.138945 | Q52: 15.311156 | R52: 11.483367 | S52: 7.655578 | T52: 3.827789 | U52: 4.263256415e-15 | V52: 4.263256415e-15 | W52: 4.263256415e-15 | X52: 4.263256415e-15 | Y52: 0 | Z52: 0 | AA52: 0 | AB52: 0 | AC52: 0 | AD52: 0 | AE52: 0 | AF52: 0 | AG52: 0 | AH52: 0 | AI52: 0 | AJ52: 0 | AK52: 0 | AL52: 0 | AM52: 0 | AN52: 0 | AO52: 0 | AP52: 0 | AQ52: 0 | AR52: 0 | AS52: 0
C53: Interest During Construction | E53: =E45*E51*E20 -> 0 | F53: =F45*F51*F20 -> 10.5 | G53: 21.63 | H53: 33.4278 | I53: 0 | J53: 0 | K53: 0 | L53: 0 | M53: 0 | N53: 0 | O53: 0 | P53: 0 | Q53: 0 | R53: 0 | S53: 0 | T53: 0 | U53: 0 | V53: 0 | W53: 0 | X53: 0 | Y53: 0 | Z53: 0 | AA53: 0 | AB53: 0 | AC53: 0 | AD53: 0 | AE53: 0 | AF53: 0 | AG53: 0 | AH53: 0 | AI53: 0 | AJ53: 0 | AK53: 0 | AL53: 0 | AM53: 0 | AN53: 0 | AO53: 0 | AP53: 0 | AQ53: 0 | AR53: 0 | AS53: 0
B55: Defaulted Debt
C56: Opening Balance | E56: =D59 -> 0 | F56: =E59 -> 0 | G56: 0 | H56: 0 | I56: 0 | J56: 0 | K56: 0 | L56: 0 | M56: 0 | N56: 0 | O56: 0 | P56: 0 | Q56: 0 | R56: 0 | S56: 0 | T56: 0 | U56: 0 | V56: 0 | W56: 0 | X56: 0 | Y56: 0 | Z56: 0 | AA56: 0 | AB56: 0 | AC56: 0 | AD56: 0 | AE56: 0 | AF56: 0 | AG56: 0 | AH56: 0 | AI56: 0 | AJ56: 0 | AK56: 0 | AL56: 0 | AM56: 0 | AN56: 0 | AO56: 0 | AP56: 0 | AQ56: 0 | AR56: 0 | AS56: 0
C57: Add: Default | E57: =E69 -> 0 | F57: =F69 -> 0 | G57: 0 | H57: 0 | I57: 0 | J57: 0 | K57: 0 | L57: 0 | M57: 0 | N57: 0 | O57: 0 | P57: 0 | Q57: 0 | R57: 0 | S57: 0 | T57: 0 | U57: 0 | V57: 0 | W57: 0 | X57: 0 | Y57: 0 | Z57: 0 | AA57: 0 | AB57: 0 | AC57: 0 | AD57: 0 | AE57: 0 | AF57: 0 | AG57: 0 | AH57: 0 | AI57: 0 | AJ57: 0 | AK57: 0 | AL57: 0 | AM57: 0 | AN57: 0 | AO57: 0 | AP57: 0 | AQ57: 0 | AR57: 0 | AS57: 0
C58: Less: Repayment of Default | E58: =E70 -> 0 | F58: =F70 -> 0 | G58: 0 | H58: 0 | I58: 0 | J58: 0 | K58: 0 | L58: 0 | M58: 0 | N58: 0 | O58: 0 | P58: 0 | Q58: 0 | R58: 0 | S58: 0 | T58: 0 | U58: 0 | V58: 0 | W58: 0 | X58: 0 | Y58: 0 | Z58: 0 | AA58: 0 | AB58: 0 | AC58: 0 | AD58: 0 | AE58: 0 | AF58: 0 | AG58: 0 | AH58: 0 | AI58: 0 | AJ58: 0 | AK58: 0 | AL58: 0 | AM58: 0 | AN58: 0 | AO58: 0 | AP58: 0 | AQ58: 0 | AR58: 0 | AS58: 0
C59: Closing Balance | E59: =E56+E57-E58 -> 0 | F59: =F56+F57-F58 -> 0 | G59: 0 | H59: 0 | I59: 0 | J59: 0 | K59: 0 | L59: 0 | M59: 0 | N59: 0 | O59: 0 | P59: 0 | Q59: 0 | R59: 0 | S59: 0 | T59: 0 | U59: 0 | V59: 0 | W59: 0 | X59: 0 | Y59: 0 | Z59: 0 | AA59: 0 | AB59: 0 | AC59: 0 | AD59: 0 | AE59: 0 | AF59: 0 | AG59: 0 | AH59: 0 | AI59: 0 | AJ59: 0 | AK59: 0 | AL59: 0 | AM59: 0 | AN59: 0 | AO59: 0 | AP59: 0 | AQ59: 0 | AR59: 0 | AS59: 0
C61: Interest Rate | E61: =$E$14 -> 0.06 | F61: =$E$14 -> 0.06 | G61: 0.06 | H61: 0.06 | I61: 0.06 | J61: 0.06 | K61: 0.06 | L61: 0.06 | M61: 0.06 | N61: 0.06 | O61: 0.06 | P61: 0.06 | Q61: 0.06 | R61: 0.06 | S61: 0.06 | T61: 0.06 | U61: 0.06 | V61: 0.06 | W61: 0.06 | X61: 0.06 | Y61: 0.06 | Z61: 0.06 | AA61: 0.06 | AB61: 0.06 | AC61: 0.06 | AD61: 0.06 | AE61: 0.06 | AF61: 0.06 | AG61: 0.06 | AH61: 0.06 | AI61: 0.06 | AJ61: 0.06 | AK61: 0.06 | AL61: 0.06 | AM61: 0.06 | AN61: 0.06 | AO61: 0.06 | AP61: 0.06 | AQ61: 0.06 | AR61: 0.06 | AS61: 0.06
C62: Interest Expense | E62: =E61*E56 -> 0 | F62: =F61*F56 -> 0 | G62: 0 | H62: 0 | I62: 0 | J62: 0 | K62: 0 | L62: 0 | M62: 0 | N62: 0 | O62: 0 | P62: 0 | Q62: 0 | R62: 0 | S62: 0 | T62: 0 | U62: 0 | V62: 0 | W62: 0 | X62: 0 | Y62: 0 | Z62: 0 | AA62: 0 | AB62: 0 | AC62: 0 | AD62: 0 | AE62: 0 | AF62: 0 | AG62: 0 | AH62: 0 | AI62: 0 | AJ62: 0 | AK62: 0 | AL62: 0 | AM62: 0 | AN62: 0 | AO62: 0 | AP62: 0 | AQ62: 0 | AR62: 0 | AS62: 0
A64: Cash Flow Statement
B65: Cash Flow | E65: =E27 -> 0 | F65: =F27 -> 0 | G65: 0 | H65: 0 | I65: 130 | J65: 130 | K65: 130 | L65: 130 | M65: 130 | N65: 130 | O65: 130 | P65: 130 | Q65: 130 | R65: 130 | S65: 130 | T65: 130 | U65: 130 | V65: 130 | W65: 130 | X65: 130 | Y65: 0 | Z65: 0 | AA65: 0 | AB65: 0 | AC65: 0 | AD65: 0 | AE65: 0 | AF65: 0 | AG65: 0 | AH65: 0 | AI65: 0 | AJ65: 0 | AK65: 0 | AL65: 0 | AM65: 0 | AN65: 0 | AO65: 0 | AP65: 0 | AQ65: 0 | AR65: 0 | AS65: 0
B66: Less: Interest Scheduled | E66: =E52 -> 0 | F66: =F52 -> 0 | G66: 0 | H66: 0 | I66: 45.933468 | J66: 42.105679 | K66: 38.27789 | L66: 34.450101 | M66: 30.622312 | N66: 26.794523 | O66: 22.966734 | P66: 19.138945 | Q66: 15.311156 | R66: 11.483367 | S66: 7.655578 | T66: 3.827789 | U66: 4.263256415e-15 | V66: 4.263256415e-15 | W66: 4.263256415e-15 | X66: 4.263256415e-15 | Y66: 0 | Z66: 0 | AA66: 0 | AB66: 0 | AC66: 0 | AD66: 0 | AE66: 0 | AF66: 0 | AG66: 0 | AH66: 0 | AI66: 0 | AJ66: 0 | AK66: 0 | AL66: 0 | AM66: 0 | AN66: 0 | AO66: 0 | AP66: 0 | AQ66: 0 | AR66: 0 | AS66: 0
B67: Less: Repayment Scheduled | E67: =E48 -> 0 | F67: =F48 -> 0 | G67: 0 | H67: 0 | I67: 63.79648333 | J67: 63.79648333 | K67: 63.79648333 | L67: 63.79648333 | M67: 63.79648333 | N67: 63.79648333 | O67: 63.79648333 | P67: 63.79648333 | Q67: 63.79648333 | R67: 63.79648333 | S67: 63.79648333 | T67: 63.79648333 | U67: 0 | V67: 0 | W67: 0 | X67: 0 | Y67: 0 | Z67: 0 | AA67: 0 | AB67: 0 | AC67: 0 | AD67: 0 | AE67: 0 | AF67: 0 | AG67: 0 | AH67: 0 | AI67: 0 | AJ67: 0 | AK67: 0 | AL67: 0 | AM67: 0 | AN67: 0 | AO67: 0 | AP67: 0 | AQ67: 0 | AR67: 0 | AS67: 0
C68: Cash After Scheduled Debt | E68: =E65-E66-E67 -> 0 | F68: =F65-F66-F67 -> 0 | G68: 0 | H68: 0 | I68: 20.27004867 | J68: 24.09783767 | K68: 27.92562667 | L68: 31.75341567 | M68: 35.58120467 | N68: 39.40899367 | O68: 43.23678267 | P68: 47.06457167 | Q68: 50.89236067 | R68: 54.72014967 | S68: 58.54793867 | T68: 62.37572767 | U68: 130 | V68: 130 | W68: 130 | X68: 130 | Y68: 0 | Z68: 0 | AA68: 0 | AB68: 0 | AC68: 0 | AD68: 0 | AE68: 0 | AF68: 0 | AG68: 0 | AH68: 0 | AI68: 0 | AJ68: 0 | AK68: 0 | AL68: 0 | AM68: 0 | AN68: 0 | AO68: 0 | AP68: 0 | AQ68: 0 | AR68: 0 | AS68: 0
B69: Add: Default on Debt | E69: =MIN(E66+E67,MAX(-E68,0)) -> 0 | F69: =MIN(F66+F67,MAX(-F68,0)) -> 0 | G69: 0 | H69: 0 | I69: 0 | J69: 0 | K69: 0 | L69: 0 | M69: 0 | N69: 0 | O69: 0 | P69: 0 | Q69: 0 | R69: 0 | S69: 0 | T69: 0 | U69: 0 | V69: 0 | W69: 0 | X69: 0 | Y69: 0 | Z69: 0 | AA69: 0 | AB69: 0 | AC69: 0 | AD69: 0 | AE69: 0 | AF69: 0 | AG69: 0 | AH69: 0 | AI69: 0 | AJ69: 0 | AK69: 0 | AL69: 0 | AM69: 0 | AN69: 0 | AO69: 0 | AP69: 0 | AQ69: 0 | AR69: 0 | AS69: 0
B70: Less: Repayment on Default | E70: =MIN(E56,MAX(E68,0)) -> 0 | F70: =MIN(F56,MAX(F68,0)) -> 0 | G70: 0 | H70: 0 | I70: 0 | J70: 0 | K70: 0 | L70: 0 | M70: 0 | N70: 0 | O70: 0 | P70: 0 | Q70: 0 | R70: 0 | S70: 0 | T70: 0 | U70: 0 | V70: 0 | W70: 0 | X70: 0 | Y70: 0 | Z70: 0 | AA70: 0 | AB70: 0 | AC70: 0 | AD70: 0 | AE70: 0 | AF70: 0 | AG70: 0 | AH70: 0 | AI70: 0 | AJ70: 0 | AK70: 0 | AL70: 0 | AM70: 0 | AN70: 0 | AO70: 0 | AP70: 0 | AQ70: 0 | AR70: 0 | AS70: 0
C71: Cash Flow After Default | E71: =E68+E69-E70 -> 0 | F71: =F68+F69-F70 -> 0 | G71: 0 | H71: 0 | I71: 20.27004867 | J71: 24.09783767 | K71: 27.92562667 | L71: 31.75341567 | M71: 35.58120467 | N71: 39.40899367 | O71: 43.23678267 | P71: 47.06457167 | Q71: 50.89236067 | R71: 54.72014967 | S71: 58.54793867 | T71: 62.37572767 | U71: 130 | V71: 130 | W71: 130 | X71: 130 | Y71: 0 | Z71: 0 | AA71: 0 | AB71: 0 | AC71: 0 | AD71: 0 | AE71: 0 | AF71: 0 | AG71: 0 | AH71: 0 | AI71: 0 | AJ71: 0 | AK71: 0 | AL71: 0 | AM71: 0 | AN71: 0 | AO71: 0 | AP71: 0 | AQ71: 0 | AR71: 0 | AS71: 0
B72: Cash for Dividends | E72: =E68+E69-E70 -> 0 | F72: =F68+F69-F70 -> 0 | G72: 0 | H72: 0 | I72: 20.27004867 | J72: 24.09783767 | K72: 27.92562667 | L72: 31.75341567 | M72: 35.58120467 | N72: 39.40899367 | O72: 43.23678267 | P72: 47.06457167 | Q72: 50.89236067 | R72: 54.72014967 | S72: 58.54793867 | T72: 62.37572767 | U72: 130 | V72: 130 | W72: 130 | X72: 130 | Y72: 0 | Z72: 0 | AA72: 0 | AB72: 0 | AC72: 0 | AD72: 0 | AE72: 0 | AF72: 0 | AG72: 0 | AH72: 0 | AI72: 0 | AJ72: 0 | AK72: 0 | AL72: 0 | AM72: 0 | AN72: 0 | AO72: 0 | AP72: 0 | AQ72: 0 | AR72: 0 | AS72: 0
A74: Outputs
B75: Equity Cash Flow | E75: =E72-E40 -> -75 | F75: =F72-F40 -> -75 | G75: -75 | H75: -75 | I75: 20.27004867 | J75: 24.09783767 | K75: 27.92562667 | L75: 31.75341567 | M75: 35.58120467 | N75: 39.40899367 | O75: 43.23678267 | P75: 47.06457167 | Q75: 50.89236067 | R75: 54.72014967 | S75: 58.54793867 | T75: 62.37572767 | U75: 130 | V75: 130 | W75: 130 | X75: 130 | Y75: 0 | Z75: 0 | AA75: 0 | AB75: 0 | AC75: 0 | AD75: 0 | AE75: 0 | AF75: 0 | AG75: 0 | AH75: 0 | AI75: 0 | AJ75: 0 | AK75: 0 | AL75: 0 | AM75: 0 | AN75: 0 | AO75: 0 | AP75: 0 | AQ75: 0 | AR75: 0 | AS75: 0
B76: Project Cash Flow | E76: =E65-E33 -> -250 | F76: =F65-F33 -> -250 | G76: -250 | H76: -250 | I76: 130 | J76: 130 | K76: 130 | L76: 130 | M76: 130 | N76: 130 | O76: 130 | P76: 130 | Q76: 130 | R76: 130 | S76: 130 | T76: 130 | U76: 130 | V76: 130 | W76: 130 | X76: 130 | Y76: 0 | Z76: 0 | AA76: 0 | AB76: 0 | AC76: 0 | AD76: 0 | AE76: 0 | AF76: 0 | AG76: 0 | AH76: 0 | AI76: 0 | AJ76: 0 | AK76: 0 | AL76: 0 | AM76: 0 | AN76: 0 | AO76: 0 | AP76: 0 | AQ76: 0 | AR76: 0 | AS76: 0
B78: Debt Cash Flow
C79: Debt Service | E79: =E67+E66 -> 0 | F79: =F67+F66 -> 0 | G79: 0 | H79: 0 | I79: 109.7299513 | J79: 105.9021623 | K79: 102.0743733 | L79: 98.24658433 | M79: 94.41879533 | N79: 90.59100633 | O79: 86.76321733 | P79: 82.93542833 | Q79: 79.10763933 | R79: 75.27985033 | S79: 71.45206133 | T79: 67.62427233 | U79: 4.263256415e-15 | V79: 4.263256415e-15 | W79: 4.263256415e-15 | X79: 4.263256415e-15 | Y79: 0 | Z79: 0 | AA79: 0 | AB79: 0 | AC79: 0 | AD79: 0 | AE79: 0 | AF79: 0 | AG79: 0 | AH79: 0 | AI79: 0 | AJ79: 0 | AK79: 0 | AL79: 0 | AM79: 0 | AN79: 0 | AO79: 0 | AP79: 0 | AQ79: 0 | AR79: 0 | AS79: 0
C80: Less: Defaults | E80: =E69 -> 0 | F80: =F69 -> 0 | G80: 0 | H80: 0 | I80: 0 | J80: 0 | K80: 0 | L80: 0 | M80: 0 | N80: 0 | O80: 0 | P80: 0 | Q80: 0 | R80: 0 | S80: 0 | T80: 0 | U80: 0 | V80: 0 | W80: 0 | X80: 0 | Y80: 0 | Z80: 0 | AA80: 0 | AB80: 0 | AC80: 0 | AD80: 0 | AE80: 0 | AF80: 0 | AG80: 0 | AH80: 0 | AI80: 0 | AJ80: 0 | AK80: 0 | AL80: 0 | AM80: 0 | AN80: 0 | AO80: 0 | AP80: 0 | AQ80: 0 | AR80: 0 | AS80: 0
C81: Add: Repayment of Default | E81: =E70 -> 0 | F81: =F70 -> 0 | G81: 0 | H81: 0 | I81: 0 | J81: 0 | K81: 0 | L81: 0 | M81: 0 | N81: 0 | O81: 0 | P81: 0 | Q81: 0 | R81: 0 | S81: 0 | T81: 0 | U81: 0 | V81: 0 | W81: 0 | X81: 0 | Y81: 0 | Z81: 0 | AA81: 0 | AB81: 0 | AC81: 0 | AD81: 0 | AE81: 0 | AF81: 0 | AG81: 0 | AH81: 0 | AI81: 0 | AJ81: 0 | AK81: 0 | AL81: 0 | AM81: 0 | AN81: 0 | AO81: 0 | AP81: 0 | AQ81: 0 | AR81: 0 | AS81: 0
C82: Less: Initial Debt Investment | E82: =-E38 -> -175 | F82: =-F38 -> -175 | G82: -175 | H82: -175 | I82: 0 | J82: 0 | K82: 0 | L82: 0 | M82: 0 | N82: 0 | O82: 0 | P82: 0 | Q82: 0 | R82: 0 | S82: 0 | T82: 0 | U82: 0 | V82: 0 | W82: 0 | X82: 0 | Y82: 0 | Z82: 0 | AA82: 0 | AB82: 0 | AC82: 0 | AD82: 0 | AE82: 0 | AF82: 0 | AG82: 0 | AH82: 0 | AI82: 0 | AJ82: 0 | AK82: 0 | AL82: 0 | AM82: 0 | AN82: 0 | AO82: 0 | AP82: 0 | AQ82: 0 | AR82: 0 | AS82: 0
D83: Total Debt Cash Flow | E83: =E79-E80+E81+E82 -> -175 | F83: =F79-F80+F81+F82 -> -175 | G83: -175 | H83: -175 | I83: 109.7299513 | J83: 105.9021623 | K83: 102.0743733 | L83: 98.24658433 | M83: 94.41879533 | N83: 90.59100633 | O83: 86.76321733 | P83: 82.93542833 | Q83: 79.10763933 | R83: 75.27985033 | S83: 71.45206133 | T83: 67.62427233 | U83: 4.263256415e-15 | V83: 4.263256415e-15 | W83: 4.263256415e-15 | X83: 4.263256415e-15 | Y83: 0 | Z83: 0 | AA83: 0 | AB83: 0 | AC83: 0 | AD83: 0 | AE83: 0 | AF83: 0 | AG83: 0 | AH83: 0 | AI83: 0 | AJ83: 0 | AK83: 0 | AL83: 0 | AM83: 0 | AN83: 0 | AO83: 0 | AP83: 0 | AQ83: 0 | AR83: 0 | AS83: 0
B85: Dividend Test | E85: =E72>=0 -> TRUE | F85: =F72>=0 -> TRUE | G85: TRUE | H85: TRUE | I85: TRUE | J85: TRUE | K85: TRUE | L85: TRUE | M85: TRUE | N85: TRUE | O85: TRUE | P85: TRUE | Q85: TRUE | R85: TRUE | S85: TRUE | T85: TRUE | U85: TRUE | V85: TRUE | W85: TRUE | X85: TRUE | Y85: TRUE | Z85: TRUE | AA85: TRUE | AB85: TRUE | AC85: TRUE | AD85: TRUE | AE85: TRUE | AF85: TRUE | AG85: TRUE | AH85: TRUE | AI85: TRUE | AJ85: TRUE | AK85: TRUE | AL85: TRUE | AM85: TRUE | AN85: TRUE | AO85: TRUE | AP85: TRUE | AQ85: TRUE | AR85: TRUE | AS85: TRUE

Sheet Exercise
A1: Periods
B2: Period | E2: 0 | F2: =E2+1 -> 1 | G2: =F2+1 -> 2 | H2: 3 | I2: 4 | J2: 5 | K2: 6 | L2: 7 | M2: 8 | N2: 9 | O2: 10 | P2: 11 | Q2: 12 | R2: 13 | S2: 14 | T2: 15 | U2: 16 | V2: 17 | W2: 18 | X2: 19 | Y2: 20 | Z2: 21 | AA2: 22 | AB2: 23 | AC2: 24 | AD2: 25 | AE2: 26 | AF2: 27 | AG2: 28 | AH2: 29 | AI2: 30 | AJ2: 31 | AK2: 32 | AL2: 33 | AM2: 34 | AN2: 35 | AO2: 36 | AP2: 37 | AQ2: 38 | AR2: 39 | AS2: 40
B3: Construction Switch | E3: =E2<1 -> TRUE | F3: =F2<1 -> FALSE | G3: FALSE | H3: FALSE | I3: FALSE | J3: FALSE | K3: FALSE | L3: FALSE | M3: FALSE | N3: FALSE | O3: FALSE | P3: FALSE | Q3: FALSE | R3: FALSE | S3: FALSE | T3: FALSE | U3: FALSE | V3: FALSE | W3: FALSE | X3: FALSE | Y3: FALSE | Z3: FALSE | AA3: FALSE | AB3: FALSE | AC3: FALSE | AD3: FALSE | AE3: FALSE | AF3: FALSE | AG3: FALSE | AH3: FALSE | AI3: FALSE | AJ3: FALSE | AK3: FALSE | AL3: FALSE | AM3: FALSE | AN3: FALSE | AO3: FALSE | AP3: FALSE | AQ3: FALSE | AR3: FALSE | AS3: FALSE
B4: Operating Switch | E4: =AND(E2>0,E2<=Life) -> FALSE | F4: TRUE | G4: TRUE | H4: TRUE | I4: TRUE | J4: TRUE | K4: TRUE | L4: TRUE | M4: TRUE | N4: TRUE | O4: TRUE | P4: TRUE | Q4: TRUE | R4: TRUE | S4: TRUE | T4: TRUE | U4: TRUE | V4: TRUE | W4: TRUE | X4: TRUE | Y4: TRUE | Z4: FALSE | AA4: FALSE | AB4: FALSE | AC4: FALSE | AD4: FALSE | AE4: FALSE | AF4: FALSE | AG4: FALSE | AH4: FALSE | AI4: FALSE | AJ4: FALSE | AK4: FALSE | AL4: FALSE | AM4: FALSE | AN4: FALSE | AO4: FALSE | AP4: FALSE | AQ4: FALSE | AR4: FALSE | AS4: FALSE
B5: Sensitivity Switch | E5: =E2>=Sensitivity_Year -> FALSE | F5: FALSE | G5: FALSE | H5: TRUE | I5: TRUE | J5: TRUE | K5: TRUE | L5: TRUE | M5: TRUE | N5: TRUE | O5: TRUE | P5: TRUE | Q5: TRUE | R5: TRUE | S5: TRUE | T5: TRUE | U5: TRUE | V5: TRUE | W5: TRUE | X5: TRUE | Y5: TRUE | Z5: TRUE | AA5: TRUE | AB5: TRUE | AC5: TRUE | AD5: TRUE | AE5: TRUE | AF5: TRUE | AG5: TRUE | AH5: TRUE | AI5: TRUE | AJ5: TRUE | AK5: TRUE | AL5: TRUE | AM5: TRUE | AN5: TRUE | AO5: TRUE | AP5: TRUE | AQ5: TRUE | AR5: TRUE | AS5: TRUE
B6: Debt Retired Switch | E6: =E2>Debt_Term -> FALSE | F6: FALSE | G6: FALSE | H6: FALSE | I6: FALSE | J6: FALSE | K6: FALSE | L6: FALSE | M6: FALSE | N6: FALSE | O6: FALSE | P6: FALSE | Q6: FALSE | R6: TRUE | S6: TRUE | T6: TRUE | U6: TRUE | V6: TRUE | W6: TRUE | X6: TRUE | Y6: TRUE | Z6: TRUE | AA6: TRUE | AB6: TRUE | AC6: TRUE | AD6: TRUE | AE6: TRUE | AF6: TRUE | AG6: TRUE | AH6: TRUE | AI6: TRUE | AJ6: TRUE | AK6: TRUE | AL6: TRUE | AM6: TRUE | AN6: TRUE | AO6: TRUE | AP6: TRUE | AQ6: TRUE | AR6: TRUE | AS6: TRUE
A8: Inputs
B10: Operating Inputs
C11: EPC Cost | E11: 1000 | I11: Equity IRR | K11: =IRR(E67:AS67) -> 0.1734533778 | N11: Amount | O11: Percent Reduction | P11: Sensitivity
C12: Initital Cash Flow | E12: 125 | I12: Project IRR | K12: =IRR(E68:AS68) -> 0.1092984821 | M12: DSCR
C13: Sensitivity Factor | E13: =F13/100 -> 1 | F13: 100 | M13: LLCR
C14: Sensitivity Year | E14: 3 | I14: Debt IRR | K14: =IRR(E73:AS73) -> 0.06 | M14: PLCR
C15: Life | E15: 20
I16: Cash Flow Test | K16: =AND(E75:AS75) -> TRUE
B17: Financial Inputs
C18: Debt Commitment | E18: 800 | I18: Final Debt | K18: =AS51 -> 0
C19: Interest Rate | E19: 0.06 | I19: Debt at Maturity
C20: Debt Term | E20: 12
C21: Cash Sweep Percent | E21: 1
A24: Working
B25: Cash Flow Before Sensitvity | E25: =E4*Initital_Cash_Flow -> 0 | F25: =F4*Initital_Cash_Flow -> 125 | G25: =G4*Initital_Cash_Flow -> 125 | H25: =H4*Initital_Cash_Flow -> 125 | I25: =I4*Initital_Cash_Flow -> 125 | J25: =J4*Initital_Cash_Flow -> 125 | K25: =K4*Initital_Cash_Flow -> 125 | L25: =L4*Initital_Cash_Flow -> 125 | M25: =M4*Initital_Cash_Flow -> 125 | N25: =N4*Initital_Cash_Flow -> 125 | O25: =O4*Initital_Cash_Flow -> 125 | P25: =P4*Initital_Cash_Flow -> 125 | Q25: =Q4*Initital_Cash_Flow -> 125 | R25: =R4*Initital_Cash_Flow -> 125 | S25: =S4*Initital_Cash_Flow -> 125 | T25: =T4*Initital_Cash_Flow -> 125 | U25: =U4*Initital_Cash_Flow -> 125 | V25: =V4*Initital_Cash_Flow -> 125 | W25: =W4*Initital_Cash_Flow -> 125 | X25: =X4*Initital_Cash_Flow -> 125 | Y25: =Y4*Initital_Cash_Flow -> 125 | Z25: =Z4*Initital_Cash_Flow -> 0 | AA25: =AA4*Initital_Cash_Flow -> 0 | AB25: =AB4*Initital_Cash_Flow -> 0 | AC25: =AC4*Initital_Cash_Flow -> 0 | AD25: =AD4*Initital_Cash_Flow -> 0 | AE25: =AE4*Initital_Cash_Flow -> 0 | AF25: =AF4*Initital_Cash_Flow -> 0 | AG25: =AG4*Initital_Cash_Flow -> 0 | AH25: =AH4*Initital_Cash_Flow -> 0 | AI25: =AI4*Initital_Cash_Flow -> 0 | AJ25: =AJ4*Initital_Cash_Flow -> 0 | AK25: =AK4*Initital_Cash_Flow -> 0 | AL25: =AL4*Initital_Cash_Flow -> 0 | AM25: =AM4*Initital_Cash_Flow -> 0 | AN25: =AN4*Initital_Cash_Flow -> 0 | AO25: =AO4*Initital_Cash_Flow -> 0 | AP25: =AP4*Initital_Cash_Flow -> 0 | AQ25: =AQ4*Initital_Cash_Flow -> 0 | AR25: =AR4*Initital_Cash_Flow -> 0 | AS25: =AS4*Initital_Cash_Flow -> 0
B26: Sensitivity Factor | E26: =IF(E5,Sensitivity_Factor,1) -> 1 | F26: =IF(F5,Sensitivity_Factor,1) -> 1 | G26: =IF(G5,Sensitivity_Factor,1) -> 1 | H26: =IF(H5,Sensitivity_Factor,1) -> 1 | I26: =IF(I5,Sensitivity_Factor,1) -> 1 | J26: =IF(J5,Sensitivity_Factor,1) -> 1 | K26: =IF(K5,Sensitivity_Factor,1) -> 1 | L26: =IF(L5,Sensitivity_Factor,1) -> 1 | M26: =IF(M5,Sensitivity_Factor,1) -> 1 | N26: =IF(N5,Sensitivity_Factor,1) -> 1 | O26: =IF(O5,Sensitivity_Factor,1) -> 1 | P26: =IF(P5,Sensitivity_Factor,1) -> 1 | Q26: =IF(Q5,Sensitivity_Factor,1) -> 1 | R26: =IF(R5,Sensitivity_Factor,1) -> 1 | S26: =IF(S5,Sensitivity_Factor,1) -> 1 | T26: =IF(T5,Sensitivity_Factor,1) -> 1 | U26: =IF(U5,Sensitivity_Factor,1) -> 1 | V26: =IF(V5,Sensitivity_Factor,1) -> 1 | W26: =IF(W5,Sensitivity_Factor,1) -> 1 | X26: =IF(X5,Sensitivity_Factor,1) -> 1 | Y26: =IF(Y5,Sensitivity_Factor,1) -> 1 | Z26: =IF(Z5,Sensitivity_Factor,1) -> 1 | AA26: =IF(AA5,Sensitivity_Factor,1) -> 1 | AB26: =IF(AB5,Sensitivity_Factor,1) -> 1 | AC26: =IF(AC5,Sensitivity_Factor,1) -> 1 | AD26: =IF(AD5,Sensitivity_Factor,1) -> 1 | AE26: =IF(AE5,Sensitivity_Factor,1) -> 1 | AF26: =IF(AF5,Sensitivity_Factor,1) -> 1 | AG26: =IF(AG5,Sensitivity_Factor,1) -> 1 | AH26: =IF(AH5,Sensitivity_Factor,1) -> 1 | AI26: =IF(AI5,Sensitivity_Factor,1) -> 1 | AJ26: =IF(AJ5,Sensitivity_Factor,1) -> 1 | AK26: =IF(AK5,Sensitivity_Factor,1) -> 1 | AL26: =IF(AL5,Sensitivity_Factor,1) -> 1 | AM26: =IF(AM5,Sensitivity_Factor,1) -> 1 | AN26: =IF(AN5,Sensitivity_Factor,1) -> 1 | AO26: =IF(AO5,Sensitivity_Factor,1) -> 1 | AP26: =IF(AP5,Sensitivity_Factor,1) -> 1 | AQ26: =IF(AQ5,Sensitivity_Factor,1) -> 1 | AR26: =IF(AR5,Sensitivity_Factor,1) -> 1 | AS26: =IF(AS5,Sensitivity_Factor,1) -> 1
B27: Cash Flow After Sensitivity | E27: =E26*E25 -> 0 | F27: =F26*F25 -> 125 | G27: 125 | H27: 125 | I27: 125 | J27: 125 | K27: 125 | L27: 125 | M27: 125 | N27: 125 | O27: 125 | P27: 125 | Q27: 125 | R27: 125 | S27: 125 | T27: 125 | U27: 125 | V27: 125 | W27: 125 | X27: 125 | Y27: 125 | Z27: 0 | AA27: 0 | AB27: 0 | AC27: 0 | AD27: 0 | AE27: 0 | AF27: 0 | AG27: 0 | AH27: 0 | AI27: 0 | AJ27: 0 | AK27: 0 | AL27: 0 | AM27: 0 | AN27: 0 | AO27: 0 | AP27: 0 | AQ27: 0 | AR27: 0 | AS27: 0
A29: Uses and Sources
B30: Uses
C31: EPC Cost | E31: =EPC_Cost -> 1000
B32: Sources
C33: Debt | E33: =Debt_Commitment -> 800
C34: Equity | E34: =E31-E33 -> 200
D35: Total | E35: =E33+E34 -> 1000
A37: Debt Schedule
B38: Debt Balance
C39: Opening Balance | E39: =D42 -> 0 | F39: =E42 -> 800 | G39: 733.3333333 | H39: 666.6666667 | I39: 600 | J39: 533.3333333 | K39: 466.6666667 | L39: 400 | M39: 333.3333333 | N39: 266.6666667 | O39: 200 | P39: 133.3333333 | Q39: 66.66666667 | R39: 0 | S39: 0 | T39: 0 | U39: 0 | V39: 0 | W39: 0 | X39: 0 | Y39: 0 | Z39: 0 | AA39: 0 | AB39: 0 | AC39: 0 | AD39: 0 | AE39: 0 | AF39: 0 | AG39: 0 | AH39: 0 | AI39: 0 | AJ39: 0 | AK39: 0 | AL39: 0 | AM39: 0 | AN39: 0 | AO39: 0 | AP39: 0 | AQ39: 0 | AR39: 0 | AS39: 0
C40: Add: Draws | E40: =E33 -> 800 | F40: =F33 -> 0 | G40: 0 | H40: 0 | I40: 0 | J40: 0 | K40: 0 | L40: 0 | M40: 0 | N40: 0 | O40: 0 | P40: 0 | Q40: 0 | R40: 0 | S40: 0 | T40: 0 | U40: 0 | V40: 0 | W40: 0 | X40: 0 | Y40: 0 | Z40: 0 | AA40: 0 | AB40: 0 | AC40: 0 | AD40: 0 | AE40: 0 | AF40: 0 | AG40: 0 | AH40: 0 | AI40: 0 | AJ40: 0 | AK40: 0 | AL40: 0 | AM40: 0 | AN40: 0 | AO40: 0 | AP40: 0 | AQ40: 0 | AR40: 0 | AS40: 0
C41: Less: Repayment | E41: =MIN(E39,Debt_Commitment/Debt_Term*E4) -> 0 | F41: =MIN(F39,Debt_Commitment/Debt_Term*F4) -> 66.66666667 | G41: =MIN(G39,Debt_Commitment/Debt_Term*G4) -> 66.66666667 | H41: =MIN(H39,Debt_Commitment/Debt_Term*H4) -> 66.66666667 | I41: =MIN(I39,Debt_Commitment/Debt_Term*I4) -> 66.66666667 | J41: =MIN(J39,Debt_Commitment/Debt_Term*J4) -> 66.66666667 | K41: =MIN(K39,Debt_Commitment/Debt_Term*K4) -> 66.66666667 | L41: =MIN(L39,Debt_Commitment/Debt_Term*L4) -> 66.66666667 | M41: =MIN(M39,Debt_Commitment/Debt_Term*M4) -> 66.66666667 | N41: =MIN(N39,Debt_Commitment/Debt_Term*N4) -> 66.66666667 | O41: =MIN(O39,Debt_Commitment/Debt_Term*O4) -> 66.66666667 | P41: =MIN(P39,Debt_Commitment/Debt_Term*P4) -> 66.66666667 | Q41: =MIN(Q39,Debt_Commitment/Debt_Term*Q4) -> 66.66666667 | R41: =MIN(R39,Debt_Commitment/Debt_Term*R4) -> 0 | S41: =MIN(S39,Debt_Commitment/Debt_Term*S4) -> 0 | T41: =MIN(T39,Debt_Commitment/Debt_Term*T4) -> 0 | U41: =MIN(U39,Debt_Commitment/Debt_Term*U4) -> 0 | V41: =MIN(V39,Debt_Commitment/Debt_Term*V4) -> 0 | W41: =MIN(W39,Debt_Commitment/Debt_Term*W4) -> 0 | X41: =MIN(X39,Debt_Commitment/Debt_Term*X4) -> 0 | Y41: =MIN(Y39,Debt_Commitment/Debt_Term*Y4) -> 0 | Z41: =MIN(Z39,Debt_Commitment/Debt_Term*Z4) -> 0 | AA41: =MIN(AA39,Debt_Commitment/Debt_Term*AA4) -> 0 | AB41: =MIN(AB39,Debt_Commitment/Debt_Term*AB4) -> 0 | AC41: =MIN(AC39,Debt_Commitment/Debt_Term*AC4) -> 0 | AD41: =MIN(AD39,Debt_Commitment/Debt_Term*AD4) -> 0 | AE41: =MIN(AE39,Debt_Commitment/Debt_Term*AE4) -> 0 | AF41: =MIN(AF39,Debt_Commitment/Debt_Term*AF4) -> 0 | AG41: =MIN(AG39,Debt_Commitment/Debt_Term*AG4) -> 0 | AH41: =MIN(AH39,Debt_Commitment/Debt_Term*AH4) -> 0 | AI41: =MIN(AI39,Debt_Commitment/Debt_Term*AI4) -> 0 | AJ41: =MIN(AJ39,Debt_Commitment/Debt_Term*AJ4) -> 0 | AK41: =MIN(AK39,Debt_Commitment/Debt_Term*AK4) -> 0 | AL41: =MIN(AL39,Debt_Commitment/Debt_Term*AL4) -> 0 | AM41: =MIN(AM39,Debt_Commitment/Debt_Term*AM4) -> 0 | AN41: =MIN(AN39,Debt_Commitment/Debt_Term*AN4) -> 0 | AO41: =MIN(AO39,Debt_Commitment/Debt_Term*AO4) -> 0 | AP41: =MIN(AP39,Debt_Commitment/Debt_Term*AP4) -> 0 | AQ41: =MIN(AQ39,Debt_Commitment/Debt_Term*AQ4) -> 0 | AR41: =MIN(AR39,Debt_Commitment/Debt_Term*AR4) -> 0 | AS41: =MIN(AS39,Debt_Commitment/Debt_Term*AS4) -> 0
C42: Closing Balance | E42: =E39+E40-E41 -> 800 | F42: =F39+F40-F41 -> 733.3333333 | G42: 666.6666667 | H42: 600 | I42: 533.3333333 | J42: 466.6666667 | K42: 400 | L42: 333.3333333 | M42: 266.6666667 | N42: 200 | O42: 133.3333333 | P42: 66.66666667 | Q42: 0 | R42: 0 | S42: 0 | T42: 0 | U42: 0 | V42: 0 | W42: 0 | X42: 0 | Y42: 0 | Z42: 0 | AA42: 0 | AB42: 0 | AC42: 0 | AD42: 0 | AE42: 0 | AF42: 0 | AG42: 0 | AH42: 0 | AI42: 0 | AJ42: 0 | AK42: 0 | AL42: 0 | AM42: 0 | AN42: 0 | AO42: 0 | AP42: 0 | AQ42: 0 | AR42: 0 | AS42: 0
C44: Interest Rate | E44: =Interest_Rate -> 0.06 | F44: 0.06 | G44: 0.06 | H44: 0.06 | I44: 0.06 | J44: 0.06 | K44: 0.06 | L44: 0.06 | M44: 0.06 | N44: 0.06 | O44: 0.06 | P44: 0.06 | Q44: 0.06 | R44: 0.06 | S44: 0.06 | T44: 0.06 | U44: 0.06 | V44: 0.06 | W44: 0.06 | X44: 0.06 | Y44: 0.06 | Z44: 0.06 | AA44: 0.06 | AB44: 0.06 | AC44: 0.06 | AD44: 0.06 | AE44: 0.06 | AF44: 0.06 | AG44: 0.06 | AH44: 0.06 | AI44: 0.06 | AJ44: 0.06 | AK44: 0.06 | AL44: 0.06 | AM44: 0.06 | AN44: 0.06 | AO44: 0.06 | AP44: 0.06 | AQ44: 0.06 | AR44: 0.06 | AS44: 0.06
C45: Interest Expense | E45: =E44*E39 -> 0 | F45: =F44*F39 -> 48 | G45: 44 | H45: 40 | I45: 36 | J45: 32 | K45: 28 | L45: 24 | M45: 20 | N45: 16 | O45: 12 | P45: 8 | Q45: 4 | R45: 0 | S45: 0 | T45: 0 | U45: 0 | V45: 0 | W45: 0 | X45: 0 | Y45: 0 | Z45: 0 | AA45: 0 | AB45: 0 | AC45: 0 | AD45: 0 | AE45: 0 | AF45: 0 | AG45: 0 | AH45: 0 | AI45: 0 | AJ45: 0 | AK45: 0 | AL45: 0 | AM45: 0 | AN45: 0 | AO45: 0 | AP45: 0 | AQ45: 0 | AR45: 0 | AS45: 0
B47: Defaulted Debt
C48: Opening Balance | E48: =D51 -> 0 | F48: =E51 -> 0 | G48: 0 | H48: 0 | I48: 0 | J48: 0 | K48: 0 | L48: 0 | M48: 0 | N48: 0 | O48: 0 | P48: 0 | Q48: 0 | R48: 0 | S48: 0 | T48: 0 | U48: 0 | V48: 0 | W48: 0 | X48: 0 | Y48: 0 | Z48: 0 | AA48: 0 | AB48: 0 | AC48: 0 | AD48: 0 | AE48: 0 | AF48: 0 | AG48: 0 | AH48: 0 | AI48: 0 | AJ48: 0 | AK48: 0 | AL48: 0 | AM48: 0 | AN48: 0 | AO48: 0 | AP48: 0 | AQ48: 0 | AR48: 0 | AS48: 0
C49: Add: Default | E49: =E62 -> 0 | F49: =F62 -> 0 | G49: 0 | H49: 0 | I49: 0 | J49: 0 | K49: 0 | L49: 0 | M49: 0 | N49: 0 | O49: 0 | P49: 0 | Q49: 0 | R49: 0 | S49: 0 | T49: 0 | U49: 0 | V49: 0 | W49: 0 | X49: 0 | Y49: 0 | Z49: 0 | AA49: 0 | AB49: 0 | AC49: 0 | AD49: 0 | AE49: 0 | AF49: 0 | AG49: 0 | AH49: 0 | AI49: 0 | AJ49: 0 | AK49: 0 | AL49: 0 | AM49: 0 | AN49: 0 | AO49: 0 | AP49: 0 | AQ49: 0 | AR49: 0 | AS49: 0
C50: Less: Repayment of Default | F50: =E49 -> 0 | G50: =F49 -> 0 | H50: 0 | I50: 0 | J50: 0 | K50: 0 | L50: 0 | M50: 0 | N50: 0 | O50: 0 | P50: 0 | Q50: 0 | R50: 0 | S50: 0 | T50: 0 | U50: 0 | V50: 0 | W50: 0 | X50: 0 | Y50: 0 | Z50: 0 | AA50: 0 | AB50: 0 | AC50: 0 | AD50: 0 | AE50: 0 | AF50: 0 | AG50: 0 | AH50: 0 | AI50: 0 | AJ50: 0 | AK50: 0 | AL50: 0 | AM50: 0 | AN50: 0 | AO50: 0 | AP50: 0 | AQ50: 0 | AR50: 0 | AS50: 0
C51: Closing Balance | E51: =E48+E49-E50 -> 0 | F51: =F48+F49-F50 -> 0 | G51: 0 | H51: 0 | I51: 0 | J51: 0 | K51: 0 | L51: 0 | M51: 0 | N51: 0 | O51: 0 | P51: 0 | Q51: 0 | R51: 0 | S51: 0 | T51: 0 | U51: 0 | V51: 0 | W51: 0 | X51: 0 | Y51: 0 | Z51: 0 | AA51: 0 | AB51: 0 | AC51: 0 | AD51: 0 | AE51: 0 | AF51: 0 | AG51: 0 | AH51: 0 | AI51: 0 | AJ51: 0 | AK51: 0 | AL51: 0 | AM51: 0 | AN51: 0 | AO51: 0 | AP51: 0 | AQ51: 0 | AR51: 0 | AS51: 0
C53: Interest Rate | E53: =E44 -> 0.06 | F53: =F44 -> 0.06 | G53: 0.06 | H53: 0.06 | I53: 0.06 | J53: 0.06 | K53: 0.06 | L53: 0.06 | M53: 0.06 | N53: 0.06 | O53: 0.06 | P53: 0.06 | Q53: 0.06 | R53: 0.06 | S53: 0.06 | T53: 0.06 | U53: 0.06 | V53: 0.06 | W53: 0.06 | X53: 0.06 | Y53: 0.06 | Z53: 0.06 | AA53: 0.06 | AB53: 0.06 | AC53: 0.06 | AD53: 0.06 | AE53: 0.06 | AF53: 0.06 | AG53: 0.06 | AH53: 0.06 | AI53: 0.06 | AJ53: 0.06 | AK53: 0.06 | AL53: 0.06 | AM53: 0.06 | AN53: 0.06 | AO53: 0.06 | AP53: 0.06 | AQ53: 0.06 | AR53: 0.06 | AS53: 0.06
C54: Interest Expense | E54: =E53*E48 -> 0 | F54: =F53*F48 -> 0 | G54: 0 | H54: 0 | I54: 0 | J54: 0 | K54: 0 | L54: 0 | M54: 0 | N54: 0 | O54: 0 | P54: 0 | Q54: 0 | R54: 0 | S54: 0 | T54: 0 | U54: 0 | V54: 0 | W54: 0 | X54: 0 | Y54: 0 | Z54: 0 | AA54: 0 | AB54: 0 | AC54: 0 | AD54: 0 | AE54: 0 | AF54: 0 | AG54: 0 | AH54: 0 | AI54: 0 | AJ54: 0 | AK54: 0 | AL54: 0 | AM54: 0 | AN54: 0 | AO54: 0 | AP54: 0 | AQ54: 0 | AR54: 0 | AS54: 0
A56: Cash Flow Statement
B57: Cash Flow | E57: =E27 -> 0 | F57: =F27 -> 125 | G57: 125 | H57: 125 | I57: 125 | J57: 125 | K57: 125 | L57: 125 | M57: 125 | N57: 125 | O57: 125 | P57: 125 | Q57: 125 | R57: 125 | S57: 125 | T57: 125 | U57: 125 | V57: 125 | W57: 125 | X57: 125 | Y57: 125 | Z57: 0 | AA57: 0 | AB57: 0 | AC57: 0 | AD57: 0 | AE57: 0 | AF57: 0 | AG57: 0 | AH57: 0 | AI57: 0 | AJ57: 0 | AK57: 0 | AL57: 0 | AM57: 0 | AN57: 0 | AO57: 0 | AP57: 0 | AQ57: 0 | AR57: 0 | AS57: 0
B58: Less: Interest Scheduled | E58: =E54+E45 -> 0 | F58: =F54+F45 -> 48 | G58: 44 | H58: 40 | I58: 36 | J58: 32 | K58: 28 | L58: 24 | M58: 20 | N58: 16 | O58: 12 | P58: 8 | Q58: 4 | R58: 0 | S58: 0 | T58: 0 | U58: 0 | V58: 0 | W58: 0 | X58: 0 | Y58: 0 | Z58: 0 | AA58: 0 | AB58: 0 | AC58: 0 | AD58: 0 | AE58: 0 | AF58: 0 | AG58: 0 | AH58: 0 | AI58: 0 | AJ58: 0 | AK58: 0 | AL58: 0 | AM58: 0 | AN58: 0 | AO58: 0 | AP58: 0 | AQ58: 0 | AR58: 0 | AS58: 0
B59: Less: Repayment Scheduled | E59: =E41 -> 0 | F59: =F41 -> 66.66666667 | G59: 66.66666667 | H59: 66.66666667 | I59: 66.66666667 | J59: 66.66666667 | K59: 66.66666667 | L59: 66.66666667 | M59: 66.66666667 | N59: 66.66666667 | O59: 66.66666667 | P59: 66.66666667 | Q59: 66.66666667 | R59: 0 | S59: 0 | T59: 0 | U59: 0 | V59: 0 | W59: 0 | X59: 0 | Y59: 0 | Z59: 0 | AA59: 0 | AB59: 0 | AC59: 0 | AD59: 0 | AE59: 0 | AF59: 0 | AG59: 0 | AH59: 0 | AI59: 0 | AJ59: 0 | AK59: 0 | AL59: 0 | AM59: 0 | AN59: 0 | AO59: 0 | AP59: 0 | AQ59: 0 | AR59: 0 | AS59: 0
B60: Less: Repayment of Default | E60: =E50 -> 0 | F60: =F50 -> 0 | G60: 0 | H60: 0 | I60: 0 | J60: 0 | K60: 0 | L60: 0 | M60: 0 | N60: 0 | O60: 0 | P60: 0 | Q60: 0 | R60: 0 | S60: 0 | T60: 0 | U60: 0 | V60: 0 | W60: 0 | X60: 0 | Y60: 0 | Z60: 0 | AA60: 0 | AB60: 0 | AC60: 0 | AD60: 0 | AE60: 0 | AF60: 0 | AG60: 0 | AH60: 0 | AI60: 0 | AJ60: 0 | AK60: 0 | AL60: 0 | AM60: 0 | AN60: 0 | AO60: 0 | AP60: 0 | AQ60: 0 | AR60: 0 | AS60: 0
C61: Cash Flow after Scheduled | E61: =E57-E58-E59-E60 -> 0 | F61: =F57-F58-F59-F60 -> 10.33333333 | G61: 14.33333333 | H61: 18.33333333 | I61: 22.33333333 | J61: 26.33333333 | K61: 30.33333333 | L61: 34.33333333 | M61: 38.33333333 | N61: 42.33333333 | O61: 46.33333333 | P61: 50.33333333 | Q61: 54.33333333 | R61: 125 | S61: 125 | T61: 125 | U61: 125 | V61: 125 | W61: 125 | X61: 125 | Y61: 125 | Z61: 0 | AA61: 0 | AB61: 0 | AC61: 0 | AD61: 0 | AE61: 0 | AF61: 0 | AG61: 0 | AH61: 0 | AI61: 0 | AJ61: 0 | AK61: 0 | AL61: 0 | AM61: 0 | AN61: 0 | AO61: 0 | AP61: 0 | AQ61: 0 | AR61: 0 | AS61: 0
B62: Add: Default on Debt | E62: =MAX(-E61,0) -> 0 | F62: =MAX(-F61,0) -> 0 | G62: 0 | H62: 0 | I62: 0 | J62: 0 | K62: 0 | L62: 0 | M62: 0 | N62: 0 | O62: 0 | P62: 0 | Q62: 0 | R62: 0 | S62: 0 | T62: 0 | U62: 0 | V62: 0 | W62: 0 | X62: 0 | Y62: 0 | Z62: 0 | AA62: 0 | AB62: 0 | AC62: 0 | AD62: 0 | AE62: 0 | AF62: 0 | AG62: 0 | AH62: 0 | AI62: 0 | AJ62: 0 | AK62: 0 | AL62: 0 | AM62: 0 | AN62: 0 | AO62: 0 | AP62: 0 | AQ62: 0 | AR62: 0 | AS62: 0
C63: Cash Flow After Default | E63: =E61+E62 -> 0 | F63: =F61+F62 -> 10.33333333 | G63: 14.33333333 | H63: 18.33333333 | I63: 22.33333333 | J63: 26.33333333 | K63: 30.33333333 | L63: 34.33333333 | M63: 38.33333333 | N63: 42.33333333 | O63: 46.33333333 | P63: 50.33333333 | Q63: 54.33333333 | R63: 125 | S63: 125 | T63: 125 | U63: 125 | V63: 125 | W63: 125 | X63: 125 | Y63: 125 | Z63: 0 | AA63: 0 | AB63: 0 | AC63: 0 | AD63: 0 | AE63: 0 | AF63: 0 | AG63: 0 | AH63: 0 | AI63: 0 | AJ63: 0 | AK63: 0 | AL63: 0 | AM63: 0 | AN63: 0 | AO63: 0 | AP63: 0 | AQ63: 0 | AR63: 0 | AS63: 0
B64: Cash for Dividends | E64: =E63 -> 0 | F64: =F63 -> 10.33333333 | G64: 14.33333333 | H64: 18.33333333 | I64: 22.33333333 | J64: 26.33333333 | K64: 30.33333333 | L64: 34.33333333 | M64: 38.33333333 | N64: 42.33333333 | O64: 46.33333333 | P64: 50.33333333 | Q64: 54.33333333 | R64: 125 | S64: 125 | T64: 125 | U64: 125 | V64: 125 | W64: 125 | X64: 125 | Y64: 125 | Z64: 0 | AA64: 0 | AB64: 0 | AC64: 0 | AD64: 0 | AE64: 0 | AF64: 0 | AG64: 0 | AH64: 0 | AI64: 0 | AJ64: 0 | AK64: 0 | AL64: 0 | AM64: 0 | AN64: 0 | AO64: 0 | AP64: 0 | AQ64: 0 | AR64: 0 | AS64: 0
A66: Outputs
B67: Equity Cash Flow | E67: =E64-E34 -> -200 | F67: =F64-F34 -> 10.33333333 | G67: 14.33333333 | H67: 18.33333333 | I67: 22.33333333 | J67: 26.33333333 | K67: 30.33333333 | L67: 34.33333333 | M67: 38.33333333 | N67: 42.33333333 | O67: 46.33333333 | P67: 50.33333333 | Q67: 54.33333333 | R67: 125 | S67: 125 | T67: 125 | U67: 125 | V67: 125 | W67: 125 | X67: 125 | Y67: 125 | Z67: 0 | AA67: 0 | AB67: 0 | AC67: 0 | AD67: 0 | AE67: 0 | AF67: 0 | AG67: 0 | AH67: 0 | AI67: 0 | AJ67: 0 | AK67: 0 | AL67: 0 | AM67: 0 | AN67: 0 | AO67: 0 | AP67: 0 | AQ67: 0 | AR67: 0 | AS67: 0
B68: Project Cash Flow | E68: =E57-E31 -> -1000 | F68: =F57-F31 -> 125 | G68: 125 | H68: 125 | I68: 125 | J68: 125 | K68: 125 | L68: 125 | M68: 125 | N68: 125 | O68: 125 | P68: 125 | Q68: 125 | R68: 125 | S68: 125 | T68: 125 | U68: 125 | V68: 125 | W68: 125 | X68: 125 | Y68: 125 | Z68: 0 | AA68: 0 | AB68: 0 | AC68: 0 | AD68: 0 | AE68: 0 | AF68: 0 | AG68: 0 | AH68: 0 | AI68: 0 | AJ68: 0 | AK68: 0 | AL68: 0 | AM68: 0 | AN68: 0 | AO68: 0 | AP68: 0 | AQ68: 0 | AR68: 0 | AS68: 0
B70: Debt Cash Flow
C71: Base Cash Flow | E71: =E58+E59-E33 -> -800 | F71: =F58+F59-F33 -> 114.6666667 | G71: 110.6666667 | H71: 106.6666667 | I71: 102.6666667 | J71: 98.66666667 | K71: 94.66666667 | L71: 90.66666667 | M71: 86.66666667 | N71: 82.66666667 | O71: 78.66666667 | P71: 74.66666667 | Q71: 70.66666667 | R71: 0 | S71: 0 | T71: 0 | U71: 0 | V71: 0 | W71: 0 | X71: 0 | Y71: 0 | Z71: 0 | AA71: 0 | AB71: 0 | AC71: 0 | AD71: 0 | AE71: 0 | AF71: 0 | AG71: 0 | AH71: 0 | AI71: 0 | AJ71: 0 | AK71: 0 | AL71: 0 | AM71: 0 | AN71: 0 | AO71: 0 | AP71: 0 | AQ71: 0 | AR71: 0 | AS71: 0
C72: Default Cash Flow | E72: =E60-E62 -> 0 | F72: =F60-F62 -> 0 | G72: 0 | H72: 0 | I72: 0 | J72: 0 | K72: 0 | L72: 0 | M72: 0 | N72: 0 | O72: 0 | P72: 0 | Q72: 0 | R72: 0 | S72: 0 | T72: 0 | U72: 0 | V72: 0 | W72: 0 | X72: 0 | Y72: 0 | Z72: 0 | AA72: 0 | AB72: 0 | AC72: 0 | AD72: 0 | AE72: 0 | AF72: 0 | AG72: 0 | AH72: 0 | AI72: 0 | AJ72: 0 | AK72: 0 | AL72: 0 | AM72: 0 | AN72: 0 | AO72: 0 | AP72: 0 | AQ72: 0 | AR72: 0 | AS72: 0
D73: Total Cash Flow | E73: =E71+E72 -> -800 | F73: =F71+F72 -> 114.6666667 | G73: 110.6666667 | H73: 106.6666667 | I73: 102.6666667 | J73: 98.66666667 | K73: 94.66666667 | L73: 90.66666667 | M73: 86.66666667 | N73: 82.66666667 | O73: 78.66666667 | P73: 74.66666667 | Q73: 70.66666667 | R73: 0 | S73: 0 | T73: 0 | U73: 0 | V73: 0 | W73: 0 | X73: 0 | Y73: 0 | Z73: 0 | AA73: 0 | AB73: 0 | AC73: 0 | AD73: 0 | AE73: 0 | AF73: 0 | AG73: 0 | AH73: 0 | AI73: 0 | AJ73: 0 | AK73: 0 | AL73: 0 | AM73: 0 | AN73: 0 | AO73: 0 | AP73: 0 | AQ73: 0 | AR73: 0 | AS73: 0
B75: Dividend Test | E75: =E64>=0 -> TRUE | F75: =F64>=0 -> TRUE | G75: TRUE | H75: TRUE | I75: TRUE | J75: TRUE | K75: TRUE | L75: TRUE | M75: TRUE | N75: TRUE | O75: TRUE | P75: TRUE | Q75: TRUE | R75: TRUE | S75: TRUE | T75: TRUE | U75: TRUE | V75: TRUE | W75: TRUE | X75: TRUE | Y75: TRUE | Z75: TRUE | AA75: TRUE | AB75: TRUE | AC75: TRUE | AD75: TRUE | AE75: TRUE | AF75: TRUE | AG75: TRUE | AH75: TRUE | AI75: TRUE | AJ75: TRUE | AK75: TRUE | AL75: TRUE | AM75: TRUE | AN75: TRUE | AO75: TRUE | AP75: TRUE | AQ75: TRUE | AR75: TRUE | AS75: TRUE
B77: DSCR
C78: Cash Flow | F78: =F57 -> 125 | G78: =G57 -> 125 | H78: 125 | I78: 125 | J78: 125 | K78: 125 | L78: 125 | M78: 125 | N78: 125 | O78: 125 | P78: 125 | Q78: 125 | R78: 125 | S78: 125 | T78: 125 | U78: 125 | V78: 125 | W78: 125 | X78: 125 | Y78: 125 | Z78: 0 | AA78: 0 | AB78: 0 | AC78: 0 | AD78: 0 | AE78: 0 | AF78: 0 | AG78: 0 | AH78: 0 | AI78: 0 | AJ78: 0 | AK78: 0 | AL78: 0 | AM78: 0 | AN78: 0 | AO78: 0 | AP78: 0 | AQ78: 0 | AR78: 0 | AS78: 0
C79: Debt Service | F79: =F58+F59 -> 114.6666667 | G79: =G58+G59 -> 110.6666667 | H79: 106.6666667 | I79: 102.6666667 | J79: 98.66666667 | K79: 94.66666667 | L79: 90.66666667 | M79: 86.66666667 | N79: 82.66666667 | O79: 78.66666667 | P79: 74.66666667 | Q79: 70.66666667 | R79: 0 | S79: 0 | T79: 0 | U79: 0 | V79: 0 | W79: 0 | X79: 0 | Y79: 0 | Z79: 0 | AA79: 0 | AB79: 0 | AC79: 0 | AD79: 0 | AE79: 0 | AF79: 0 | AG79: 0 | AH79: 0 | AI79: 0 | AJ79: 0 | AK79: 0 | AL79: 0 | AM79: 0 | AN79: 0 | AO79: 0 | AP79: 0 | AQ79: 0 | AR79: 0 | AS79: 0
D80: DSCR | F80: =IF(F79>0.1,F78/F79) -> 1.090116279 | G80: =IF(G79>0.1,G78/G79) -> 1.129518072 | H80: 1.171875 | I80: 1.217532468 | J80: 1.266891892 | K80: 1.320422535 | L80: 1.378676471 | M80: 1.442307692 | N80: 1.512096774 | O80: 1.588983051 | P80: 1.674107143 | Q80: 1.768867925 | R80: FALSE | S80: FALSE | T80: FALSE | U80: FALSE | V80: FALSE | W80: FALSE | X80: FALSE | Y80: FALSE | Z80: FALSE | AA80: FALSE | AB80: FALSE | AC80: FALSE | AD80: FALSE | AE80: FALSE | AF80: FALSE | AG80: FALSE | AH80: FALSE | AI80: FALSE | AJ80: FALSE | AK80: FALSE | AL80: FALSE | AM80: FALSE | AN80: FALSE | AO80: FALSE | AP80: FALSE | AQ80: FALSE | AR80: FALSE | AS80: FALSE

Sheet Theory
B3: Adding default allows you to more precisely measure the risk associated with debt terms
B5: You can test cash flow sweeps etc.

Sheet Tables
L8: 2 | O8: Project IRR | P8: Debt IRR | Q8: Equity IRR
F9: Project IRR | G9: Debt IRR | H9: Equity IRR | L9: =L8-1% -> 1.99 | N9: 2 | O9: 0.2469745576 | P9: 0.05999999866 | Q9: 0.7054905295
F10: =Exercise!K12 -> 0.1092984821 | G10: =Exercise!K14 -> 0.06 | H10: =IF(ISNUMBER(Exercise!K11),Exercise!K11,-100%) -> 0.1734533778 | L10: =L9-1% -> 1.98 | N10: 1.99 | O10: 0.2456763238 | P10: 0.05999999866 | Q10: 0.6995025277
L11: 1.97 | N11: 1.98 | O11: 0.2443772703 | P11: 0.05999999866 | Q11: 0.6935193539
L12: 1.96 | N12: 1.97 | O12: 0.2430774122 | P12: 0.05999999866 | Q12: 0.6875411272
L13: 1.95 | N13: 1.96 | O13: 0.2417767346 | P13: 0.05999999866 | Q13: 0.6815679669
L14: 1.94 | N14: 1.95 | O14: 0.2404752076 | P14: 0.05999999866 | Q14: 0.6755999923
L15: 1.93 | N15: 1.94 | O15: 0.2391728312 | P15: 0.05999999866 | Q15: 0.669637382
L16: 1.92 | N16: 1.93 | O16: 0.2378695905 | P16: 0.05999999866 | Q16: 0.663680315
L17: 1.91 | N17: 1.92 | O17: 0.2365654558 | P17: 0.05999999866 | Q17: 0.6577288508
L18: 1.9 | N18: 1.91 | O18: 0.235260427 | P18: 0.05999999866 | Q18: 0.6517831683
L19: 1.89 | N19: 1.9 | O19: 0.2339544743 | P19: 0.05999999866 | Q19: 0.6458434463
L20: 1.88 | N20: 1.89 | O20: 0.2326475829 | P20: 0.05999999866 | Q20: 0.6399098635
L21: 1.87 | N21: 1.88 | O21: 0.2313397527 | P21: 0.05999999866 | Q21: 0.6339825988
L22: 1.86 | N22: 1.87 | O22: 0.2300309539 | P22: 0.05999999866 | Q22: 0.6280617714
L23: 1.85 | N23: 1.86 | O23: 0.2287211865 | P23: 0.05999999866 | Q23: 0.6221476197
L24: 1.84 | N24: 1.85 | O24: 0.2274104059 | P24: 0.05999999866 | Q24: 0.6162403226
L25: 1.83 | N25: 1.84 | O25: 0.226098612 | P25: 0.05999999866 | Q25: 0.6103400588
L26: 1.82 | N26: 1.83 | O26: 0.2247857749 | P26: 0.05999999866 | Q26: 0.6044470072
L27: 1.81 | N27: 1.82 | O27: 0.2234718949 | P27: 0.05999999866 | Q27: 0.5985614061
L28: 1.8 | N28: 1.81 | O28: 0.222156927 | P28: 0.05999999866 | Q28: 0.5926834941
L29: 1.79 | N29: 1.8 | O29: 0.2208408862 | P29: 0.05999999866 | Q29: 0.5868133903
L30: 1.78 | N30: 1.79 | O30: 0.2195237279 | P30: 0.05999999866 | Q30: 0.5809514523
L31: 1.77 | N31: 1.78 | O31: 0.2182054371 | P31: 0.05999999866 | Q31: 0.5750977993
L32: 1.76 | N32: 1.77 | O32: 0.2168859988 | P32: 0.05999999866 | Q32: 0.5692527294
L33: 1.75 | N33: 1.76 | O33: 0.2155653834 | P33: 0.05999999866 | Q33: 0.563416481
L34: 1.74 | N34: 1.75 | O34: 0.2142435759 | P34: 0.05999999866 | Q34: 0.5575893521
L35: 1.73 | N35: 1.74 | O35: 0.2129205614 | P35: 0.05999999866 | Q35: 0.5517715216
L36: 1.72 | N36: 1.73 | O36: 0.2115963101 | P36: 0.05999999866 | Q36: 0.5459632874
L37: 1.71 | N37: 1.72 | O37: 0.2102708071 | P37: 0.05999999866 | Q37: 0.5401650071
L38: 1.7 | N38: 1.71 | O38: 0.2089440227 | P38: 0.05999999866 | Q38: 0.5343768597
L39: 1.69 | N39: 1.7 | O39: 0.2076159269 | P39: 0.05999999866 | Q39: 0.528599143
L40: 1.68 | N40: 1.69 | O40: 0.2062865049 | P40: 0.05999999866 | Q40: 0.5228322744
L41: 1.67 | N41: 1.68 | O41: 0.2049557418 | P41: 0.05999999866 | Q41: 0.5170764327
L42: 1.66 | N42: 1.67 | O42: 0.2036235929 | P42: 0.05999999866 | Q42: 0.5113319755
L43: 1.65 | N43: 1.66 | O43: 0.2022900581 | P43: 0.05999999866 | Q43: 0.5055993199
L44: 1.64 | N44: 1.65 | O44: 0.2009550929 | P44: 0.05999999866 | Q44: 0.4998786747
L45: 1.63 | N45: 1.64 | O45: 0.1996186674 | P45: 0.05999999866 | Q45: 0.4941704869
L46: 1.62 | N46: 1.63 | O46: 0.1982807815 | P46: 0.05999999866 | Q46: 0.4884750247
L47: 1.61 | N47: 1.62 | O47: 0.1969413757 | P47: 0.05999999866 | Q47: 0.4827927351
L48: 1.6 | N48: 1.61 | O48: 0.1956004351 | P48: 0.05999999866 | Q48: 0.4771239161
L49: 1.59 | N49: 1.6 | O49: 0.1942579448 | P49: 0.05999999866 | Q49: 0.4714689851
L50: 1.58 | N50: 1.59 | O50: 0.1929138601 | P50: 0.05999999866 | Q50: 0.4658282995
L51: 1.57 | N51: 1.58 | O51: 0.191568166 | P51: 0.05999999866 | Q51: 0.4602023065
L52: 1.56 | N52: 1.57 | O52: 0.1902208179 | P52: 0.05999999866 | Q52: 0.4545913935
L53: 1.55 | N53: 1.56 | O53: 0.188871786 | P53: 0.05999999866 | Q53: 0.4489959478
L54: 1.54 | N54: 1.55 | O54: 0.1875210404 | P54: 0.05999999866 | Q54: 0.4434164166
L55: 1.53 | N55: 1.54 | O55: 0.1861685663 | P55: 0.05999999866 | Q55: 0.4378531873
L56: 1.52 | N56: 1.53 | O56: 0.1848143041 | P56: 0.05999999866 | Q56: 0.4323067665
L57: 1.51 | N57: 1.52 | O57: 0.1834582388 | P57: 0.05999999866 | Q57: 0.4267775416
L58: 1.5 | N58: 1.51 | O58: 0.1821003258 | P58: 0.05999999866 | Q58: 0.4212659597
L59: 1.49 | N59: 1.5 | O59: 0.1807405502 | P59: 0.05999999866 | Q59: 0.4157724977
L60: 1.48 | N60: 1.49 | O60: 0.1793788522 | P60: 0.05999999866 | Q60: 0.4102976322
L61: 1.47 | N61: 1.48 | O61: 0.1780152023 | P61: 0.05999999866 | Q61: 0.4048417807
L62: 1.46 | N62: 1.47 | O62: 0.1766495705 | P62: 0.05999999866 | Q62: 0.3994054496
L63: 1.45 | N63: 1.46 | O63: 0.1752819121 | P63: 0.05999999866 | Q63: 0.393989116
L64: 1.44 | N64: 1.45 | O64: 0.1739121974 | P64: 0.05999999866 | Q64: 0.3885932267
L65: 1.43 | N65: 1.44 | O65: 0.1725403816 | P65: 0.05999999866 | Q65: 0.3832182884
L66: 1.42 | N66: 1.43 | O66: 0.1711664349 | P66: 0.05999999866 | Q66: 0.377864778
L67: 1.41 | N67: 1.42 | O67: 0.1697902828 | P67: 0.05999999866 | Q67: 0.3725331724
L68: 1.4 | N68: 1.41 | O68: 0.1684119254 | P68: 0.05999999866 | Q68: 0.3672239482
L69: 1.39 | N69: 1.4 | O69: 0.1670312881 | P69: 0.05999999866 | Q69: 0.3619375825
L70: 1.38 | N70: 1.39 | O70: 0.1656483412 | P70: 0.05999999866 | Q70: 0.3566745818
L71: 1.37 | N71: 1.38 | O71: 0.1642630398 | P71: 0.05999999866 | Q71: 0.3514353931
L72: 1.36 | N72: 1.37 | O72: 0.1628753394 | P72: 0.05999999866 | Q72: 0.3462205231
L73: 1.35 | N73: 1.36 | O73: 0.1614851803 | P73: 0.05999999866 | Q73: 0.3410304189
L74: =L73-1% -> 1.34 | N74: 1.35 | O74: 0.1600925326 | P74: 0.05999999866 | Q74: 0.3358655274
L75: 1.33 | N75: 1.34 | O75: 0.158697322 | P75: 0.05999999866 | Q75: 0.3307263255
L76: 1.32 | N76: 1.33 | O76: 0.1572995186 | P76: 0.05999999866 | Q76: 0.3256132603
L77: 1.31 | N77: 1.32 | O77: 0.1558990777 | P77: 0.05999999866 | Q77: 0.3205267489
L78: 1.3 | N78: 1.31 | O78: 0.1544959247 | P78: 0.05999999866 | Q78: 0.3154672086
L79: 1.29 | N79: 1.3 | O79: 0.1530900151 | P79: 0.05999999866 | Q79: 0.3104350865
L80: 1.28 | N80: 1.29 | O80: 0.1516812891 | P80: 0.05999999866 | Q80: 0.3054307699
L81: 1.27 | N81: 1.28 | O81: 0.1502697021 | P81: 0.05999999866 | Q81: 0.3004546165
L82: 1.26 | N82: 1.27 | O82: 0.1488551795 | P82: 0.05999999866 | Q82: 0.2955070138
L83: 1.25 | N83: 1.26 | O83: 0.1474376768 | P83: 0.05999999866 | Q83: 0.2905883193
L84: 1.24 | N84: 1.25 | O84: 0.1460171193 | P84: 0.05999999866 | Q84: 0.2856988609
L85: 1.23 | N85: 1.24 | O85: 0.1445934623 | P85: 0.05999999866 | Q85: 0.2808389664
L86: 1.22 | N86: 1.23 | O86: 0.1431666166 | P86: 0.05999999866 | Q86: 0.2760088742
L87: 1.21 | N87: 1.22 | O87: 0.1417365372 | P87: 0.05999999866 | Q87: 0.2712089121
L88: 1.2 | N88: 1.21 | O88: 0.1403031647 | P88: 0.05999999866 | Q88: 0.2664393187
L89: 1.19 | N89: 1.2 | O89: 0.1388663948 | P89: 0.05999999866 | Q89: 0.2617003024
L90: 1.18 | N90: 1.19 | O90: 0.1374261975 | P90: 0.05999999866 | Q90: 0.2569920719
L91: 1.17 | N91: 1.18 | O91: 0.1359824687 | P91: 0.05999999866 | Q91: 0.252314806
L92: 1.16 | N92: 1.17 | O92: 0.1345351487 | P92: 0.05999999866 | Q92: 0.2476686537
L93: 1.15 | N93: 1.16 | O93: 0.1330841631 | P93: 0.05999999866 | Q93: 0.2430537343
L94: 1.14 | N94: 1.15 | O94: 0.1316294223 | P94: 0.05999999866 | Q94: 0.238470152
L95: 1.13 | N95: 1.14 | O95: 0.1301708668 | P95: 0.05999999866 | Q95: 0.2339179516
L96: 1.12 | N96: 1.13 | O96: 0.1287083924 | P96: 0.05999999866 | Q96: 0.2293971926
L97: 1.11 | N97: 1.12 | O97: 0.1272419095 | P97: 0.05999999866 | Q97: 0.2249078751
L98: 1.1 | N98: 1.11 | O98: 0.1257713586 | P98: 0.05999999866 | Q98: 0.2204499841
L99: 1.09 | N99: 1.1 | O99: 0.1242966428 | P99: 0.05999999866 | Q99: 0.2160234749
L100: 1.08 | N100: 1.09 | O100: 0.1228176579 | P100: 0.05999999866 | Q100: 0.2116282731
L101: 1.07 | N101: 1.08 | O101: 0.1213343069 | P101: 0.05999999866 | Q101: 0.2072642744
L102: 1.06 | N102: 1.07 | O102: 0.1198465154 | P102: 0.05999999866 | Q102: 0.2029313445
L103: 1.05 | N103: 1.06 | O103: 0.1183541641 | P103: 0.05999999866 | Q103: 0.1986293048
L104: 1.04 | N104: 1.05 | O104: 0.1168571562 | P104: 0.05999999866 | Q104: 0.1943579912
L105: 1.03 | N105: 1.04 | O105: 0.1153553873 | P105: 0.05999999866 | Q105: 0.1901171654
L106: 1.02 | N106: 1.03 | O106: 0.1138487458 | P106: 0.05999999866 | Q106: 0.1859065741
L107: 1.01 | N107: 1.02 | O107: 0.1123371273 | P107: 0.05999999866 | Q107: 0.181725949
L108: 1 | N108: 1.01 | O108: 0.1108204126 | P108: 0.05999999866 | Q108: 0.1775749922
L109: 0.99 | N109: 1 | O109: 0.1092984825 | P109: 0.05999999866 | Q109: 0.1734533757
L110: 0.98 | N110: 0.99 | O110: 0.1077712178 | P110: 0.05999999866 | Q110: 0.169360742
L111: 0.97 | N111: 0.98 | O111: 0.1062384918 | P111: 0.05999999866 | Q111: 0.1652966887
L112: 0.96 | N112: 0.97 | O112: 0.1047001779 | P112: 0.05999999866 | Q112: 0.1612608433
L113: 0.95 | N113: 0.96 | O113: 0.1031561494 | P113: 0.05999999866 | Q113: 0.1572527438
L114: 0.94 | N114: 0.95 | O114: 0.1016062498 | P114: 0.05999999866 | Q114: 0.1532719582
L115: 0.93 | N115: 0.94 | O115: 0.10005036 | P115: 0.05999999866 | Q115: 0.1493179947
L116: 0.92 | N116: 0.93 | O116: 0.09848831594 | P116: 0.05999999866 | Q116: 0.1453903764
L117: 0.91 | N117: 0.92 | O117: 0.09691998363 | P117: 0.05999999866 | Q117: 0.1414885521
L118: 0.9 | N118: 0.91 | O118: 0.09534519166 | P118: 0.05999999866 | Q118: 0.1376373172
L119: 0.89 | N119: 0.9 | O119: 0.09376379102 | P119: 0.05999999866 | Q119: 0.1338263154
L120: 0.88 | N120: 0.89 | O120: 0.09217561781 | P120: 0.05999999866 | Q120: 0.1300780922
L121: 0.87 | N121: 0.88 | O121: 0.09058049321 | P121: 0.05999999866 | Q121: 0.1263872385
L122: 0.86 | N122: 0.87 | O122: 0.08897824585 | P122: 0.05999999866 | Q122: 0.1227371469
L123: 0.85 | N123: 0.86 | O123: 0.08736869693 | P123: 0.05999999866 | Q123: 0.119149588
L124: 0.84 | N124: 0.85 | O124: 0.08575164527 | P124: 0.05999999866 | Q124: 0.115610756
L125: 0.83 | N125: 0.84 | O125: 0.08412690461 | P125: 0.05999999866 | Q125: 0.1121017113
L126: 0.82 | N126: 0.83 | O126: 0.08249427378 | P126: 0.05999999866 | Q126: 0.1086278111
L127: 0.81 | N127: 0.82 | O127: 0.08085353673 | P127: 0.05999999866 | Q127: 0.1051940694
L128: 0.8 | N128: 0.81 | O128: 0.07920449227 | P128: 0.05999999866 | Q128: 0.1017703265
L129: 0.79 | N129: 0.8 | O129: 0.07754689455 | P129: 0.05999999866 | Q129: 0.09834900498
L130: 0.78 | N130: 0.79 | O130: 0.0758805275 | P130: 0.05999999866 | Q130: 0.09493178129
L131: 0.77 | N131: 0.78 | O131: 0.07420513779 | P131: 0.05999999866 | Q131: 0.09150760621
L132: 0.76 | N132: 0.77 | O132: 0.07252048701 | P132: 0.05999999866 | Q132: 0.08805113286
L133: 0.75 | N133: 0.76 | O133: 0.07082631439 | P133: 0.05999999866 | Q133: 0.08454787731
L134: 0.74 | N134: 0.75 | O134: 0.0691223368 | P134: 0.05999999866 | Q134: 0.08097362518
L135: 0.73 | N135: 0.74 | O135: 0.06740828604 | P135: 0.05999999866 | Q135: 0.0772767812
L136: 0.72 | N136: 0.73 | O136: 0.06568386406 | P136: 0.05999999866 | Q136: 0.07344977558
L137: 0.71 | N137: 0.72 | O137: 0.0639487803 | P137: 0.05999999866 | Q137: 0.06949266046
L138: =L137-1% -> 0.7 | N138: 0.71 | O138: 0.06220270321 | P138: 0.05999999866 | Q138: 0.06539333612
L139: 0.69 | N139: 0.7 | O139: 0.06044531241 | P139: 0.05999999866 | Q139: 0.06111125275
L140: 0.68 | N140: 0.69 | O140: 0.05867626891 | P140: 0.05999999866 | Q140: 0.05663118139
L141: 0.67 | N141: 0.68 | O141: 0.05689521134 | P141: 0.05999999866 | Q141: 0.05191073567
L142: 0.66 | N142: 0.67 | O142: 0.05510177091 | P142: 0.05999999866 | Q142: 0.04691339657
L143: 0.65 | N143: 0.66 | O143: 0.05329556018 | P143: 0.05999999866 | Q143: 0.04160954431
L144: 0.64 | N144: 0.65 | O144: 0.0514761731 | P144: 0.05999999866 | Q144: 0.03586070985
L145: 0.63 | N145: 0.64 | O145: 0.04964318871 | P145: 0.05999999866 | Q145: 0.02963889576
L146: 0.62 | N146: 0.63 | O146: 0.04779616371 | P146: 0.05999999866 | Q146: 0.02280200832
L147: 0.61 | N147: 0.62 | O147: 0.04593463615 | P147: 0.05999999866 | Q147: 0.01507803518
L148: 0.6 | N148: 0.61 | O148: 0.04405812174 | P148: 0.05999999866 | Q148: 0.006351808086
L149: 0.59 | N149: 0.6 | O149: 0.04216611013 | P149: 0.05999999866 | Q149: -0.004201381002
L150: 0.58 | N150: 0.59 | O150: 0.04025807604 | P150: 0.05999999866 | Q150: -0.01701674797
L151: 0.57 | N151: 0.58 | O151: 0.03833345696 | P151: 0.05999999866 | Q151: -0.03470591456
L152: 0.56 | N152: 0.57 | O152: 0.0363916643 | P152: 0.05999999866 | Q152: -0.0622846894
L153: 0.55 | N153: 0.56 | O153: 0.03443209082 | P153: 0.05999999866 | Q153: -0.1423048973
L154: 0.54 | N154: 0.55 | O154: 0.03245408088 | P154: 0.05823214352 | Q154: -1
L155: 0.53 | N155: 0.54 | O155: 0.03045695648 | P155: 0.05600006506 | Q155: -1
L156: 0.52 | N156: 0.53 | O156: 0.02843999676 | P156: 0.05374833196 | Q156: -1
L157: 0.51 | N157: 0.52 | O157: 0.02640244365 | P157: 0.0514761731 | Q157: -1
L158: 0.5 | N158: 0.51 | O158: 0.02434349805 | P158: 0.04918276519 | Q158: -1
L159: 0.49 | N159: 0.5 | O159: 0.02226231061 | P159: 0.04686724022 | Q159: -1
L160: 0.48 | N160: 0.49 | O160: 0.02015798911 | P160: 0.04452868178 | Q160: -1
L161: 0.47 | N161: 0.48 | O161: 0.01802958362 | P161: 0.04216611013 | Q161: -1
L162: 0.46 | N162: 0.47 | O162: 0.01587608829 | P162: 0.03977849707 | Q162: -1
L163: 0.45 | N163: 0.46 | O163: 0.01369643211 | P163: 0.03736474365 | Q163: -1
L164: 0.44 | N164: 0.45 | O164: 0.01148948167 | P164: 0.03492368758 | Q164: -1
L165: 0.43 | N165: 0.44 | O165: 0.009254025295 | P165: 0.03245408088 | Q165: -1
L166: 0.42 | N166: 0.43 | O166: 0.006988775451 | P166: 0.0299546048 | Q166: -1
L167: 0.41 | N167: 0.42 | O167: 0.004692353774 | P167: 0.02742384374 | Q167: -1
L168: 0.4 | N168: 0.41 | O168: 0.002363287611 | P168: 0.02486028522 | Q168: -1
L169: 0.39 | N169: 0.4 | O169: -8.009890303e-16 | P169: 0.02226231061 | Q169: -1
L170: 0.38 | N170: 0.39 | O170: -0.002399201505 | P170: 0.01962818392 | Q170: -1
L171: 0.37 | N171: 0.38 | O171: -0.004836135544 | P171: 0.01695603691 | Q171: -1
L172: 0.36 | N172: 0.37 | O172: -0.007312760223 | P172: 0.01424385887 | Q172: -1
L173: 0.35 | N173: 0.36 | O173: -0.009831189178 | P173: 0.01148948167 | Q173: -1
L174: 0.34 | N174: 0.35 | O174: -0.01239370555 | P174: 0.008690558374 | Q174: -1
L175: 0.33 | N175: 0.34 | O175: -0.01500278525 | P175: 0.005844550673 | Q175: -1
L176: 0.32 | N176: 0.33 | O176: -0.01766111515 | P176: 0.002948699053 | Q176: -1
L177: 0.31 | N177: 0.32 | O177: -0.02037162147 | P177: -8.562971584e-16 | Q177: -1
L178: 0.3 | N178: 0.31 | O178: -0.02313749678 | P178: -0.003004823579 | Q178: -1
L179: 0.29 | N179: 0.3 | O179: -0.02596223727 | P179: -0.006069358438 | Q179: -1
L180: 0.28 | N180: 0.29 | O180: -0.02884967811 | P180: -0.009197540581 | Q180: -1
L181: 0.27 | N181: 0.28 | O181: -0.0318040438 | P181: -0.01239370555 | Q181: -1
L182: 0.26 | N182: 0.27 | O182: -0.03482999653 | P182: -0.01566264033 | Q182: -1
L183: 0.25 | N183: 0.26 | O183: -0.03793271631 | P183: -0.01900965348 | Q183: -1
L184: 0.24 | N184: 0.25 | O184: -0.04111795872 | P184: -0.02244065143 | Q184: -1
L185: 0.23 | N185: 0.24 | O185: -0.04439215735 | P185: -0.02596223727 | Q185: -1
L186: 0.22 | N186: 0.23 | O186: -0.04776254296 | P186: -0.02958182059 | Q186: -1
L187: 0.21 | N187: 0.22 | O187: -0.05123726279 | P187: -0.03330776095 | Q187: -1
L188: 0.2 | N188: 0.21 | O188: -0.05482556671 | P188: -0.03714953735 | Q188: -1
L189: 0.19 | N189: 0.2 | O189: -0.05853799358 | P189: -0.04111795872 | Q189: -1
L190: 0.18 | N190: 0.19 | O190: -0.06238665059 | P190: -0.04522543773 | Q190: -1
L191: 0.17 | N191: 0.18 | O191: -0.06638553739 | P191: -0.04948631302 | Q191: -1
L192: 0.16 | N192: 0.17 | O192: -0.07055094838 | P192: -0.05391728878 | Q192: -1
L193: 0.15 | N193: 0.16 | O193: -0.07490204275 | P193: -0.05853799358 | Q193: -1
L194: 0.14 | N194: 0.15 | O194: -0.07946154475 | P194: -0.06337169558 | Q194: -1
N195: 0.14 | O195: -0.08425669372 | P195: -0.06844630092 | Q195: -1
IU5000: Tables!$F$10:$H$10
IU5001: Tables!$O$9
IU5002: Tables!$L$8:$L$194
IU5003: Exercise!$E$7
